Workbook

Sheet PORTADA
B2: 14896532
B12: www.acfmsc.com
B13: 14896532
R88: LEN2285
R93: LEN2285
P325: 67010623

Sheet MENU
B5: Descripción | C5: Nombre de la hoja
B6: Actividades plataformas tecnológicas | C6: ACTIVIDADES
B7: Determinación del salario base de cotización | C7: FSBC
B8: Determinación del SBC trabajadores de plataformas | C8: SBCP
B9: Guía de movimientos afiliatorios al IMSS | C9: GUIA
B10: Determinación de la cuota obrero-patronales | C10: DCUOTAS
B11: Fundamentos descuentos INFONAVIT | C11: INFONAVIT
B12: Costos unitarios atención trabajadores independientes | C12: COSTOU
B13: Importar archivos XML emitidos | C13: CFDIE
B14: Importar XML con complemento de pago emitidos | C14: RPAGOSE
B15: Importar archivos XML recibidos | C15: CFDIR
B16: Importar XML con complemento de pago recibidos | C16: RPAGOSR
B17: Importar XML de nómina | C17: NOMINA
B18: Determinación del pago provisional actividad emrpesarial | C18: PP PFAEP
B19: Formato pago provisional plataformas tecnológicas | C19: PP PLATA
B20: Formato IVA actividad empresarial | C20: IVA
B21: Formato IVA plataformas tecnológicas | C21: IVAP
B22: Fundamentos legales | C22: FUNDAMENTO

Sheet ACTIVIDADES
C2: Ir al MENÚ
B4: Tranasporte terrestre de personas y entrega de bienes
C6: Ingreso anual
B7: Tranasporte terrestre de personas y entrega de bienes a traves de intermediarios
B8: Tranasporte terrestre de personas y entrega de bienes cobro directo
B9: (=) Total | C9: =SUM(C7:C8) -> 0
B10: (x) Tasa de ISR | C10: 0.021
B11: (=) ISR causado anual | C11: =IFERROR(ROUND(C9*C10,0),0) -> 0
B13: Retención no definitiva
C14: Ingreso anual
B15: Tranasporte terrestre de personas y entrega de bienes a traves de intermediarios
B16: Tranasporte terrestre de personas y entrega de bienes cobro directo
B17: (=) Total | C17: =SUM(C15:C16) -> 0
B18: (-) Deducciones autorizadas
B19: (=) Base para ISR | C19: =C17-C18 -> 0
B20: ISR causado | C20: =IFERROR(ROUND(((C19-VLOOKUP(C19,TANUAL,1))*VLOOKUP(C19,TANUAL,4)%)+VLOOKUP(C19,TANUAL,3),0),0) -> 0
B23: Fecha de cálculo
B24: Salario mínimo mensual de la Ciudad de México | D24: =278.8*30 -> 8364
B25: Pago a la persona trabajadores por mes
B26: Salario mínimo diario de la Ciudad de México | D26: 278.8
B27: Tipo de transporte
B28: Vehículos motorizados de cuatro o más ruedas de combustión interna, eléctricos o análogos. | D28: =IFERROR(VLOOKUP(B28,GENERALES1!$H$6:$J$8,IF(AND(MONTH(D23)>=7,MONTH(D23)<=9),3,2),FALSE),"") -> 0.36
B29: Cuarta. Exclusión de la herramienta de trabajo. Para calcular el Ingreso Neto Mensual de las personas trabajadoras en plataformas digitales, se tomará el Ingreso Bruto Mensual al que se aplicará la exclusión de un porcentaje diferenciado derivado del uso intensivo y continuo de la plataforma digital como herramienta de trabajo tecnológica proporcionada por el patrón, bajo los parámetros establecidos en la siguiente Disposición. Fundamento: Reglas de caracter general LFT (27/06/2025) | D29: =IFERROR(ROUND(D25*D28,2),"") -> 0
B30: (=) Salario neto mensual | D30: =IFERROR(ROUND(D25-D29,2),"") -> 0 | E30: =IF(D30>=D24,"Persona trabajadora de plataformas digitales",IF(D30<D24,"Trabajador independiente","")) -> Trabajador independiente
B32: Determinación del Salario base de cotización
B33: Ingreso neto mensual | D33: =IFERROR(IF(D30>=D24,D30,""),"") -> 
B34: (/) Días del mes | D34: =IFERROR(DAY(EOMONTH(D23,0)),"") -> 31
B35: (=) Salario base de cotización | D35: =IFERROR(ROUND(D33/D34,2),"") -> 
B37: Determinación de las retenciones del IMSS
B38: Mes de la UMA | C38: Febrero en adelante
B39: Valor de la UMA | C39: =IFERROR(VLOOKUP(C38,GENERALES1!$B$25:$C$26,2,FALSE),"") -> 113.14
B40: Días del periodo a calcular | C40: 31
B42: Seguro y concepto | C42: Prestaciones | D42: Salario Base de Cotización | E42: (-) 3 umas | F42: (=) Excedente 3 umas | G42: (x) Cuota obrera | H42: (=) Cuota diaria | I42: (x) días del periodo | J42: (=) Cuota obrera
B43: Enfermedades y Maternidad | C43: En especie | D43: =IFERROR(IF($D$35<=$D$26,$D$26,$D$35),"") ->  | E43: =IFERROR(C39*3,0) -> 339.42 | F43: =IFERROR(IF(D43>=E43,D43-E43,0),0) -> 0 | G43: 0.004 | H43: =IFERROR(ROUND(F43*G43,2),0) -> 0 | I43: =IFERROR($C$40,"") -> 31 | J43: =IFERROR(ROUND(H43*I43,2),0) -> 0
B44: Enfermedades y Maternidad | C44: En dinero | D44: =IFERROR(IF($D$35<=$D$26,$D$26,$D$35),"") ->  | G44: 0.0025 | H44: =IFERROR(ROUND(D44*G44,2),0) -> 0 | I44: =IFERROR($C$40,"") -> 31 | J44: =IFERROR(ROUND(H44*I44,2),0) -> 0
B45: Enfermedades y Maternidad | C45: Gastos médicos para pensionados y beneficiarios | G45: 0.00375 | H45: =IFERROR(ROUND(D45*G45,2),0) -> 0 | I45: 31 | J45: 0
B46: Invalidez y Vida | C46: En especie y dinero | G46: 0.0063 | H46: 0 | I46: 31 | J46: 0
B47: Cesantía en Edad Avanzada y Vejez (CEAV) | G47: 0.01125 | H47: 0 | I47: 31 | J47: 0
I48: Total | J48: =SUM(J43:J47) -> 0
B50: Artículo 36 LSS. Corresponde al patrón pagar íntegramente la cuota señalada para los trabajadores, en los casos en que éstos perciban como cuota diaria el salario mínimo.
B52: =IF(E30="Persona trabajadora de plataformas digitales","Retención por un periodo de " & C40,"") ->  | C52: =IFERROR(IF(B52<>"",J48,""),"") -> 
B56: Servicio de hospedaje | E56: Enajenación de bienes y prestación de servicios
C58: Ingreso anual | H58: Ingreso anual
B59: Servicio de hospedaje a traves de intermediarios | E59: Enajenación de bienes y prestación de servicios a treves de intermediarios
B60: Servicio de hospedaje cobro directo | E60: Enajenación de bienes y prestación de servicios cobro directo.
B61: (=) Total | C61: =SUM(C59:C60) -> 0 | E61: (=) Total | H61: =SUM(H59:H60) -> 0
B62: (x) Tasa de ISR | C62: 0.04 | E62: (x) Tasa de ISR | H62: 0.01
B63: (=) ISR causado anual | C63: =IFERROR(ROUND(C61*C62,0),0) -> 0 | E63: (=) ISR causado anual | H63: =IFERROR(ROUND(H61*H62,0),0) -> 0
B65: Retención no definitiva | E65: Retención no definitiva
C66: Ingreso anual | H66: Ingreso anual
B67: Tranasporte terrestre de personas y entrega de bienes a traves de intermediarios | E67: Tranasporte terrestre de personas y entrega de bienes a traves de intermediarios
B68: Tranasporte terrestre de personas y entrega de bienes cobro directo | E68: Tranasporte terrestre de personas y entrega de bienes cobro directo
B69: (=) Total | C69: =SUM(C67:C68) -> 0 | E69: (=) Total | H69: =SUM(H67:H68) -> 0
B70: (-) Deducciones autorizadas | E70: (-) Deducciones autorizadas
B71: (=) Base para ISR | C71: =C69-C70 -> 0 | E71: (=) Base para ISR | H71: =H69-H70 -> 0
B72: ISR causado | C72: =IFERROR(ROUND(((C71-VLOOKUP(C71,TANUAL,1))*VLOOKUP(C71,TANUAL,4)%)+VLOOKUP(C71,TANUAL,3),0),0) -> 0 | E72: ISR causado | H72: =IFERROR(ROUND(((H71-VLOOKUP(H71,TANUAL,1))*VLOOKUP(H71,TANUAL,4)%)+VLOOKUP(H71,TANUAL,3),0),0) -> 0

Sheet FSBC
B2: Solo capture información en las celdas de color verde
B4: Ir al MENÚ
B5: 4. DE LA AFILIACIÓN DE LAS PERSONAS TRABAJADORAS DE PLATAFORMAS DIGITALES ANTE EL IMSS. 4.1 Los patrones de las personas trabajadoras de plataformas digitales podrán optar por cumplir las obligaciones en materia de seguridad social conforme al Régimen Obligatorio de la LSS al que se refiere la fracción I del artículo 12 de la misma, o bien en los términos de las presentes Reglas, en cuyo caso tendrán las siguientes obligaciones en materia de seguridad social:
E7: Valor de la UMA | F7: 113.14
E8: Salario diario del trabajador
B9: Artículo 27 LSS. El salario base de cotización se integra con los pagos hechos en efectivo por cuota diaria, gratificaciones, percepciones, alimentación, habitación, primas, comisiones, prestaciones en especie y cualquiera otra cantidad o prestación que se entregue al trabajador por su trabajo. Se excluyen como integrantes del salario base de cotización, dada su naturaleza, los siguientes conceptos:
B10: I. Los instrumentos de trabajo tales como herramientas, ropa y otros similares | F10: https://dof.gob.mx/nota_detalle.php?codigo=5721189&fecha=22/03/2024#gsc.tab=0
B11: II. El ahorro, cuando se integre por un depósito de cantidad semanaria, quincenal o mensual igual del trabajador y de la empresa; si se constituye en forma diversa o puede el trabajador retirarlo más de dos veces al año, integrará salario; tampoco se tomarán en cuenta las cantidades otorgadas por el patrón para fines sociales de carácter sindical.
B12: Artículo 93 LISR. No se pagará el impuesto sobre la renta por la obtención de los siguientes ingresos: XI. Los provenientes de cajas de ahorro de trabajadores y de fondos de ahorro establecidos por las empresas para sus trabajadores cuando reúnan los requisitos de deducibilidad del Título II de esta Ley o, en su caso, del presente Título. Requisitos. Que sean otorgados en forma general a todos los trabajadores El monto del patrón tiene que ser igual a la aportación de los trabajadores No exceder del 13% del salario del trabajador Con un límite del 1.3 veces del valor de la UMA elevada al año Fundamento: Artículo 27 fracción XI LISR
B13: III. Las aportaciones adicionales que el patrón convenga otorgar a favor de sus trabajadores por concepto de cuotas del seguro de retiro, cesantía en edad avanzada y vejez.
B14: IV. Las cuotas que en términos de esta Ley le corresponde cubrir al patrón, las aportaciones al Instituto del Fondo Nacional de la Vivienda para los Trabajadores, y las participaciones en las utilidades de la empresa; | F14: https://dof.gob.mx/nota_detalle.php?codigo=5694775&fecha=07/07/2023#gsc.tab=0
B15: Artículo 36 LSS. Corresponde al patrón pagar íntegramente la cuota señalada para los trabajadores, en los casos en que éstos perciban como cuota diaria el salario mínimo.
B16: Artículo 29 LINFONAVIT.- Son obligaciones de los patrones: II.- Determinar el monto de las aportaciones del cinco por ciento sobre el salario de los trabajadores a su servicio y efectuar el pago en las entidades receptoras que actúen por cuenta y orden del Instituto, para su abono en la subcuenta de vivienda de las cuentas individuales de los trabajadores previstas en los sistemas de ahorro para el retiro, en los términos de la presente Ley y sus reglamentos, así como en lo conducente, conforme a lo previsto en la Ley del Seguro Social y en la Ley Federal del Trabajo. En lo que corresponde a la integración y cálculo de la base y límite superior salarial para el pago de aportaciones, se aplicará lo contenido en la Ley del Seguro Social. Estas aportaciones son gastos de previsión de las empresas y forman parte del patrimonio de los trabajadores. ......................................
B17: V. La alimentación y la habitación cuando se entreguen en forma onerosa a los trabajadores; se entiende que son onerosas estas prestaciones cuando el trabajador pague por cada una de ellas, como mínimo, el veinte por ciento del salario mínimo general diario que rija en el Distrito Federal | F17: =IF(F7<>"","Se debe de cobrar por lo menos $"&ROUND(F7*0.2,2),"") -> Se debe de cobrar por lo menos $22.63 | G17: https://dof.gob.mx/nota_detalle.php?codigo=5733018&fecha=11/07/2024#gsc.tab=0
E18: ¿Cuántos alimentos se le dan al trabajador? | F18: 3
E19: =IF(F18<>"","¿Cuanto paga el trabajador por el alimento?","") -> ¿Cuanto paga el trabajador por el alimento? | F19: 22.63
E20: =IF(AND(F18<>"",F19<>""),IF(AND(F18=1,F19<ROUND(F7*0.2,2)),"Se integra al salario el 8.33% del salario ordinario",IF(AND(F18=2,F19<ROUND(F7*0.2,2)),"Se integra al salario el 16.66% del salario ordinario",IF(AND(F18=3,F19<ROUND(F7*0.2,2)),"Se integra al salario el 25% del salario ordinario",""))),"") ->  | F20: =IF(AND(F18<>"",F19<>""),IF(AND(F18=1,F19<ROUND(F7*0.2,2)),ROUND(F8*8.33%,2),IF(AND(F18=2,F19<ROUND(F7*0.2,2)),ROUND(F8*16.66%,2),IF(AND(F18=3,F19<ROUND(F7*0.2,2)),ROUND(F8*25%,2),""))),"") -> 
B21: Artículo 32 LSS. Si además del salario en dinero el trabajador recibe del patrón, sin costo para aquél, habitación o alimentación, se estimará aumentado su salario en un veinticinco por ciento y si recibe ambas prestaciones se aumentará en un cincuenta por ciento. Cuando la alimentación no cubra los tres alimentos, sino uno o dos de éstos, por cada uno de ellos se adicionará el salario en un ocho punto treinta y tres por ciento.
B22: Artículo 344 LFT.- Las disposiciones de este capítulo se aplican a los trabajadores en hoteles, casas de asistencia, restaurantes, fondas, cafés, bares y otros establecimientos análogos. Artículo 348 LFT.- La alimentación que se proporcione a los trabajadores deberá ser sana, abundante y nutritiva.
B23: VI. Las despensas en especie o en dinero, siempre y cuando su importe no rebase el cuarenta por ciento del salario mínimo general diario vigente en el Distrito Federal | F23: =IF(F7<>"","El importe máximo es de $"&ROUND(F7*0.4,2),"") -> El importe máximo es de $45.26
E24: ¿Importe diario que se le entrega al trabajador? | F24: 50
E25: =IF(F24<>"","Parte que integra","") -> Parte que integra | F25: =IFERROR(IF(F24<>"",IF(AND(F24<>"",F24>ROUND(F7*0.4,2)),F24-ROUND(F7*0.4,2),0),""),"") -> 4.74
E26: =IF(F24<>"","Parte que no integra","") -> Parte que no integra | F26: =IFERROR(IF(F24<>"",IF(F24>=ROUND(F7*0.4,2),ROUND(F7*0.4,2),F24),""),"") -> 45.26
B27: VII. Los premios por asistencia y puntualidad, siempre que el importe de cada uno de estos conceptos no rebase el diez por ciento del salario base de cotización | F27: https://dof.gob.mx/nota_detalle.php?codigo=5744811&fecha=10/12/2024#gsc.tab=0
B28: VIII. Las cantidades aportadas para fines sociales, considerándose como tales las entregadas para constituir fondos de algún plan de pensiones establecido por el patrón o derivado de contratación colectiva. Los planes de pensiones serán sólo los que reúnan los requisitos que establezca la Comisión Nacional del Sistema de Ahorro para el Retiro, y | F28: https://dof.gob.mx/nota_detalle.php?codigo=5691515&fecha=08/06/2023#gsc.tab=0
B29: IX. El tiempo extraordinario dentro de los márgenes señalados en la Ley Federal del Trabajo.
B30: Artículo 66 LFT.- Podrá también prolongarse la jornada de trabajo por circunstancias extraordinarias, sin exceder nunca de tres horas diarias ni de tres veces en una semana.
B31: Para que los conceptos mencionados en este precepto se excluyan como integrantes del salario base de cotización, deberán estar debidamente registrados en la contabilidad del patrón. En los conceptos previstos en las fracciones VI, VII y IX cuando el importe de estas prestaciones rebase el porcentaje establecido, solamente se integrarán los excedentes al salario base de cotización.
B33: Determinación del salario base de cotización
B35: Fecha inicial de cálculo | C35: 2025-01-01
B36: Fecha final de cálculo | C36: 2025-02-25
B37: Salario diario del trabajador | C37: 500
B38: Zona del salario mínimo | C38: Zona del Salario Mínimo General
B39: Salario mínimo | C39: =IFERROR(VLOOKUP(C38,GENERALES1!B21:C22,2,FALSE),"") -> 278.8
B40: Mes de la UMA | C40: Febrero en adelante
B41: Valor de la UMA | C41: =IFERROR(VLOOKUP(C40,GENERALES1!B25:C26,2,FALSE),"") -> 113.14
B42: ¿Días de aguinaldo que se otorgan? | C42: 15
B43: % de la prima vacacional | C43: 0.25
B44: ¿Cuántos alimentos se le dan al trabajador? | C44: 1 | D44: =IF(C44<>"","¿Cuánto se cobra al trabajador?","") -> ¿Cuánto se cobra al trabajador? | E44: 23 | F44: =IFERROR(IF(E44<($C$41*0.2),"Parte que integra",""),"") ->  | G44: =IFERROR(IF(F44<>"",IF(C44=1,ROUND(C37*8.33%,IF(C44=2,ROUND(C37*16.66%,2),ROUND(C37*25%,2))),""),""),"") -> 
B45: ¿Se otorga habitación al trabajador? | C45: No | D45: =IF(C45="Sí","¿Cuánto se cobra al trabajador?","") ->  | F45: =IFERROR(IF(E45<($C$41*0.2),"Parte que integra",""),"") -> Parte que integra | G45: =IFERROR(IF(AND(F45<>"",C45="Sí"),ROUND(C37*25%,2),""),"") -> 
B46: ¿% que aporta el patrón al fondo de ahorro? | C46: 0.1 | D46: =IF(C46<>"","¿% que aporta el trabajador?","") -> ¿% que aporta el trabajador? | E46: 0.1 | F46: =IF(C46<>E46,"Parte que integra","") ->  | G46: =IFERROR(IF(F46<>"",ROUND((C37*C46)-(C37*E46),2),""),"") -> 
B47: ¿Se otorga despensa al trabajador? | C47: Sí | D47: =IF(C47<>"","¿Cuánto se le entrega?","") -> ¿Cuánto se le entrega? | E47: 55 | F47: =IF(C47<>E47,"Parte que integra","") -> Parte que integra | G47: =IFERROR(IF(F47<>"",IF(E47>=(C41*0.4),ROUND(E47-(C41*0.4),2),""),""),"") -> 9.74
B48: ¿Labora todos los domingos del año? | C48: Sí | D48: =IF(C48="Sí","¿% de la prima dominical?","") -> ¿% de la prima dominical? | E48: 0.25
B50: Determinación del factor de integración
B51: Aguinaldo | D51: =IFERROR(ROUND(C52/C53,4),"") -> 0.0411
B52: Días de aguinaldo que se otorgan | C52: =IFERROR(IF(C42<>"",C42,""),"") -> 15
B53: (/) Días del año | C53: =IF(C52<>"",365,"") -> 365
B54: (+) Prima vacacional | D54: =IFERROR(ROUND(C55/C56*C57,4),"") -> 0.0082
B55: Días de vacaciones que le corresponden | C55: =IFERROR(IF(AND(C35<>"",C36<>""),VLOOKUP(VALUE(DATEDIF(C35,C36,"y")&"."&DATEDIF(C35,C36,"ym")&DATEDIF(C35,C36,"md")),TABLAV,3),""),"") -> 12
B56: (/) Días del año | C56: =IF(C55<>"",365,"") -> 365
B57: (x) % de la prima vacacional | C57: =IFERROR(IF(C43<>"",C43,""),"") -> 0.25
B58: (+) Prima dominical (en su caso) | D58: =IFERROR(ROUND(C59/C60*C61,4),"") -> 0.0356
B59: Domingos del año | C59: =IFERROR(IF(C48="Sí",52,""),"") -> 52
B60: (/) Días del año | C60: =IFERROR(IF(C48="Sí",365,""),"") -> 365
B61: (x) % de la prima dominical | C61: =IFERROR(IF(C48="Sí",E48,""),"") -> 0.25
B62: (+) La unidad | D62: =IF(AND(C52<>"",C55<>""),1,"") -> 1
B63: (=) Factor de integración | D63: =IFERROR(IF(D51<>"",SUMIF(D51:D62,">0"),""),"") -> 1.0849
B65: Determinación del salario base de cotización
B66: Salario diario | D66: =IFERROR(IF(C37<>"",C37,""),"") -> 500
B67: (x) Factor de integración | D67: =IFERROR(IF(D63<>"",D63,""),"") -> 1.0849
B68: (=) Resultado | D68: =IFERROR(ROUND(D66*D67,2),"") -> 542.45
B69: (+) Alimentación | D69: =IF(G44<>"",G44,"") -> 
B70: (+) Habitación | D70: =IF(G45<>"",G45,"") -> 
B71: (+) Fondo de ahorro | D71: =IF(G46<>"",G46,"") -> 
B72: (+) Despensa | D72: =IF(G47<>"",G47,"") -> 9.74
B73: (=) Salario base de cotización en partes fijas | D73: =IFERROR(ROUND(SUMIF(D67:D72,">0"),2),0) -> 553.27
B76: Determinación de las partes variables
B77: Días devengados del bimestre | C77: 61
C79: Importe 1er. Mes | D79: Importe 2° mes | E79: Total | F79: Importe x día del bimestre | G79: Límite máximo | H79: Parte que no integra | I79: Parte que integra
B80: Premio de puntualidad | C80: 1500 | D80: 1500 | E80: =IF(OR(C80<>"",D80<>""),SUM(C80:D80),"") -> 3000 | F80: =IFERROR(ROUND(E80/$C$77,2),"") -> 49.18 | G80: =IFERROR(IF(E80<>"",ROUND(D73*0.1,2),""),"") -> 55.33 | H80: =IF(F80<>"",IF(F80>=G80,G80,F80),"") -> 49.18 | I80: =IF(F80<>"",IF(F80>G80,F80-G80,0),"") -> 0
B81: Premio de asistencia | C81: 900 | D81: 900 | E81: =IF(OR(C81<>"",D81<>""),SUM(C81:D81),"") -> 1800 | F81: =IFERROR(ROUND(E81/$C$77,2),"") -> 29.51 | G81: =IFERROR(IF(E81<>"",ROUND(D73*0.1,2),""),"") -> 55.33 | H81: =IF(F81<>"",IF(F81>=G81,G81,F81),"") -> 29.51 | I81: =IF(F81<>"",IF(F81>G81,F81-G81,0),"") -> 0
B82: Bonos | C82: 2500 | D82: 3200 | E82: 5700 | F82: 93.44
B83: Tiempo extra triple
B84: Otros
E85: Total partes variables | F85: =IFERROR(SUM(I80:I81,F82:F84),0) -> 93.44
B87: Artículo 28 LSS. Los asegurados se inscribirán con el salario base de cotización que perciban en el momento de su afiliación, estableciéndose como límite superior el equivalente a veinticinco veces el salario mínimo general que rija en el Distrito Federal y como límite inferior el salario mínimo general del área geográfica respectiva.
B89: Importe en partes fijas | C89: =IFERROR(IF(D73<>"",D73,""),"") -> 553.27
B90: (+) Importe en partes variables | C90: =IFERROR(IF(AND(F85<>"",F85>0),F85,""),"") -> 93.44
B91: (=) Total | C91: =IF(C89<>"",SUMIF(C89:C90,">0"),"") -> 646.71
B93: Salario base de cotización | C93: =IFERROR(IF(C91<ROUND(C39*D63,2),ROUND(C39*D63,2),IF(C91>ROUND(C41*25,2),ROUND(C41*25,2),C91)),"") -> 646.71

Sheet SBCP
D2: Ir al MENÚ
B3: Determinación del salario base de cotización
B5: Nombre del trabajador
B6: Ingreso Bruto Mensual: Es la suma de los conceptos generados por la persona trabajadora de plataformas digitales por tarea, servicio, obra o trabajo realizado, premios y estímulos o cualquier figura análoga otorgada por la persona empleadora, antes que se aplique cualquier tipo de exclusión, sin considerar los montos que las personas trabajadoras reciban por concepto de propinas. Fundamento: Reglas de caracter general LFT (27/06/2025)
B8: Fecha de cálculo
B9: Salario mínimo mensual de la Ciudad de México | D9: =278.8*30 -> 8364
B10: Pago a la persona trabajadores por mes
B11: Tipo de transporte
B12: Vehículos motorizados de cuatro o más ruedas de combustión interna, eléctricos o análogos. | D12: =IFERROR(IF(D8<>"",VLOOKUP(B12,GENERALES1!$H$6:$J$8,IF(AND(MONTH(D8)>=7,MONTH(D8)<=9),3,2),FALSE),""),"") -> 
B13: Cuarta. Exclusión de la herramienta de trabajo. Para calcular el Ingreso Neto Mensual de las personas trabajadoras en plataformas digitales, se tomará el Ingreso Bruto Mensual al que se aplicará la exclusión de un porcentaje diferenciado derivado del uso intensivo y continuo de la plataforma digital como herramienta de trabajo tecnológica proporcionada por el patrón, bajo los parámetros establecidos en la siguiente Disposición. Fundamento: Reglas de caracter general LFT (27/06/2025) | D13: =IFERROR(ROUND(D10*D12,2),"") -> 
B14: (=) Salario neto mensual | D14: =IFERROR(ROUND(D10-D13,2),"") ->  | E14: =IF(D14<>"",IF(D14>=D9,"Persona trabajadora de plataformas digitales",IF(D14<D9,"Trabajador independiente","")),"") -> 
B15: Ingreso Neto Mensual: Es el monto económico al que le fueron aplicadas las exclusiones correspondientes, sin afectar el Ingreso Bruto Mensual que recibe la persona trabajadora de plataformas digitales. Fundamento: Reglas de caracter general LFT (27/06/2025)
B17: Determinación del Salario base de cotización
B18: Ingreso neto mensual | D18: =IFERROR(IF(D14>=D9,D14,""),"") -> 
B19: Salario Base de Cotización: El Ingreso Neto Mensual de la persona trabajadora de plataformas digitales, entre los días del mes calendario, y sobre el cual se calcularán las cuotas obrero-patronales correspondientes, de conformidad con lo previsto en la Ley del Seguro Social. Fundamento: Reglas de caracter general LFT (27/06/2025)
B20: (/) Días del mes | D20: =IFERROR(DAY(EOMONTH(D8,0)),"") -> 31
B21: (=) Salario base de cotización | D21: =IFERROR(ROUND(D18/D20,2),"") -> 
B23: Reglas IMSS 4.1 Los patrones de las personas trabajadoras de plataformas digitales podrán optar por cumplir las obligaciones en materia de seguridad social conforme al Régimen Obligatorio de la LSS al que se refiere la fracción I del artículo 12 de la misma, o bien en los términos de las presentes Reglas, en cuyo caso tendrán las siguientes obligaciones en materia de seguridad social: b) Inscribir ante el IMSS a las personas susceptibles de prestar sus servicios a través de las empresas de plataformas digitales referidas en el capítulo IX BIS de la LFT desde su registro en la plataforma, con al menos un salario mínimo general diario de la Ciudad de México.

Sheet GUIA
E2: Ir al MENÚ
B4: Inscripción / Reingreso Marca el inicio de un periodo de aseguramiento que la plataforma comunica al IMSS. Este movimiento se puede transmitir en cualquier momento del mes, justo para proteger al trabajador antes de que inicie actividades del periodo con la plataforma. Su estructura y valores para las plataformas digitales son los siguientes:
B6: Nombre del campo | C6: Tipo | D6: Posiciones | E6: Longitud | F6: Características / valores
B7: Número de Registro Patronal | C7: AN | D7: 01 a 11 | E7: 11 | F7: Número asignado por el IMSS a la empresa de plataformas digitales.
B8: Número de Seguridad Social | C8: N | D8: 12 a 22 | E8: 11 | F8: Número asignado por el IMSS al trbajador. En caso de que el trabajador no lo tenga o conozca, podrá obternerlo en el portal IMSS²
B9: 2 Para obtener o localizar el número de seguridad social, los trabajadores deberán acudir a la siguiente dirección con su CURP y una cuenta de correo electrónico: http://www.imss.gob.mx/tramites/imss02008
B10: Primer Apellido | C10: A | D10: 23 a 49 | E10: 27 | F10: Primer Apellido del Asegurado
B11: Segundo Apellido | C11: A | D11: 50 a 76 | E11: 27 | F11: Segundo Apellido del Asegurado
B12: Nombre(S) | C12: A | D12: 77 a 103 | E12: 27 | F12: Nombre(s) del asegurado
B13: Salario base de cotización | C13: N | D13: 104 a 109 | E13: 6 | F13: Sueldo más prestaciones en forma diaria. Ver regla 4.1.b)
B14: Reglas IMSS Inscribir ante el IMSS a las personas susceptibles de prestar sus servicios a través de las empresas de plataformas digitales referidas en el capítulo IX BIS de la LFT desde su registro en la plataforma, con al menos un salario mínimo general diario de la Ciudad de México.
B15: Glosario de terminos reglas IMSS Ingreso Neto Mensual: El referido por la Ley Federal del Trabajo respecto de las personas trabajadoras de plataformas digitales.
B16: Reglas IMSS 6.1 En el caso de la persona trabajadora de plataforma digital que genere ingresos netos mensuales equivalentes a, por lo menos, un salario mínimo general mensual de la Ciudad de México, el salario base de cotización corresponderá a la división del total del ingreso neto mensual percibido en el mes de que se trate, entre los días calendario del mismo mes.
B17: Sin contenido | C17: A | D17: 110 a 115 | E17: 6 | F17: Espacios en blanco
B18: Tipo de trabajador | C18: N | D18: 116 | E18: 1 | F18: 2 - Trabajador Eventual de la Ciudad
B19: Tipo de salario | C19: N | D19: 117 | E19: 1 | F19: 1 - Salario variable
B20: Jornada redudica | C20: N | D20: 118 | E20: 1 | F20: 6 - Jornada reducida
B21: Fecha de movimiento | C21: N | D21: 119 a 126 | E21: 8 | F21: Fecha de inicio de labores (DDMMYYYY)
B22: UMF | C22: N | D22: 127 A 129 | E22: 3 | F22: Clínica de adscripción del asegurado
B23: Sin contenido | C23: A | D23: 137 a 138 | E23: 5 | F23: Espacios en blanco
B24: Tipo de movimiento | C24: N | D24: 132 133 | E24: 2 | F24: 08 - Reingreso
B25: Sin contenido | C25: A | D25: 134 a 138 | E25: 5 | F25: Espacios en blanco
B26: Clave del trabajador | C26: AN | D26: 139 A 148 | E26: 10 | F26: Clave asignada por el patrón
B27: Sin contenido | C27: A | D27: 149 | E27: 1 | F27: Espacios en blanco
B28: Clave única de registro de población | C28: AN | D28: 150 A 167 | E28: 18 | F28: Número asignado por la Secretaría de Gobernación 18 posiciones en forma alfanumérica
B29: Identificador del formato | C29: N | D29: 168 | E29: 1 | F29: Dígito nuevo (9). Terminador de registro
B31: Baja trabajadores del IMSS
B32: Vencido el mes calendario, determinar el universo de personas trabajadoras de las empresas de plataformas digitales referidas en el capítulo IX BIS de la LFT sujetas a aseguramiento, en virtud del cumplimiento de los requisitos establecidos en la LFT. Fundamento: Reglas IMSS 4.1 inciso d)
B33: Guía para la integración de movimientos afiliatorios Baja Indica el cierre de una inscripción en un periodo. Posterior al movimiento de Inscripción / reingreso, son los únicos movimientos que deben transmitirse durante el desarrollo del mes.
B35: Utilícese este movimiento de baja únicamente para cerrar el periodo de aseguramiento de aquellas personas que sí alcanzaron la condición de trabajadores de plataformas digitales, para quienes no, revísese el movimiento de Cancelación de Inscripción, que se presenta más adelante.
B37: Nombre del campo | C37: Tipo | D37: Posiciones | E37: Longitud | F37: Características / valores
B38: Número de Registro Patronal | C38: AN | D38: 01 a 11 | E38: 11 | F38: Registro asignado por el IMSS en 11 posiciones alfanumérico
B39: Número de Seguridad Social | C39: N | D39: 12 a 22 | E39: 11 | F39: Número de registro del trabajador asignado por el IMSS
B40: Primer Apellido | C40: A | D40: 23 a 49 | E40: 27 | F40: Primer Apellido del Asegurado
B41: Segundo Apellido | C41: A | D41: 50 a 76 | E41: 27 | F41: Segundo Apellido del Asegurado
B42: Nombre(S) | C42: A | D42: 77 a 103 | E42: 27 | F42: Nombre(s) del asegurado
B43: Sin contenido | C43: A | D43: 104 A 118 | E43: 15 | F43: Espacios en blanco
B44: Fecha de movimiento | C44: N | D44: 119 a 126 | E44: 8 | F44: Fecha del movimiento de baja (DDMMYYYY)
B45: Sin contenido | C45: A | D45: 127 A 131 | E45: 5 | F45: Espacios en blanco
B46: Tipo de movimiento | C46: N | D46: 132 133 | E46: 2 | F46: 02 - Baja
B47: Sin contenido | C47: A | D47: 134 a 138 | E47: 5 | F47: Espacios en blanco
B48: Clave del trabajador | C48: AN | D48: 139 A 148 | E48: 10 | F48: Clave asignada por el patrón
B49: Causa de baja | C49: AN | D49: 149 | E49: 1 | F49: 1 - Termino de contrato 2 - Separación voluntaria 3 - Abandono de empleo 4 - Defunción 5 - Clausura 6 - Otras 7 - Ausentismo 8 - Rescición de contrato 9 - Jubilación A - Pensión
B50: Clave única de registro de población | C50: AN | D50: 150 A 167 | E50: 18 | F50: Número asignado por el Registro Nacional de Población
B51: Identificador del formato | C51: N | D51: 168 | E51: 1 | F51: Dígito nuevo (9).
B53: Modificación de salario
B54: Respecto de las personas trabajadoras de plataformas digitales que cumplan con los requisitos de la LFT, ajustar el salario base de cotización dentro de los primeros cinco días naturales del mes inmediato posterior al mes del aseguramiento, para lo cual deberán presentar los movimientos afiliatorios respectivos, en términos de lo dispuesto por el numeral 6 de las presentes Reglas. Fundamento: Reglas IMSS 4.1 inciso f)
B55: Guía para la integración de movimientos afiliatorios En caso de haber cambios de salario dentro del periodo, el movimiento de modificación de salario permite cerrar el periodo vigente con el anterior salario declarado (desde el reingreso o modificación de salario anterior) y abrir un nuevo periodo con el nuevo salario indicado en el campo “Salario base de cotización”. Este movimiento es el estándar en los movimientos afiliatorios que manejan los patrones del régimen obligatorio de
B57: Nombre del campo | C57: Tipo | D57: Posiciones | E57: Longitud | F57: Características / valores
B58: Número de Registro Patronal | C58: AN | D58: 01 a 11 | E58: 11 | F58: Registro asignado por el IMSS en 11 posiciones alfanumérico
B59: Número de Seguridad Social | C59: N | D59: 12 a 22 | E59: 11 | F59: Número de registro del trabajador asignado por el IMSS
B60: Primer Apellido | C60: A | D60: 23 a 49 | E60: 27 | F60: Primer Apellido del Asegurado
B61: Segundo Apellido | C61: A | D61: 50 a 76 | E61: 27 | F61: Segundo Apellido del Asegurado
B62: Nombre(S) | C62: A | D62: 77 a 103 | E62: 27 | F62: Nombre(s) del asegurado
B63: Salario base de cotización | C63: N | D63: 104 a 109 | E63: 6 | F63: Sueldo más prestaciones en forma diaria.
B64: Sin contenido | C64: A | D64: 110 a 116 | E64: 7 | F64: Espacios en blanco
B65: Tipo de salario | C65: N | D65: 117 | E65: 1 | F65: 1 - Salario variable
B66: Jornada redudica | C66: N | D66: 118 | E66: 1 | F66: 6 - Jornada reducida
B67: Fecha de movimiento | C67: N | D67: 119 a 126 | E67: 8 | F67: Fecha de la modificación de salario (DDMMYYYY)
B68: Sin contenido | C68: A | D68: 127 a 131 | E68: 5 | F68: Espacios en blanco
B69: Tipo de movimiento | C69: N | D69: 132 133 | E69: 2 | F69: 07 - Modificación de salario
B70: Sin contenido | C70: A | D70: 134 a 138 | E70: 5 | F70: Espacios en blanco
B71: Clave del trabajador | C71: AN | D71: 139 A 148 | E71: 10 | F71: Clave asignada por el patrón
B72: Sin contenido | C72: A | D72: 149 | E72: 1 | F72: Espacios en blanco
B73: Clave única de registro de población | C73: AN | D73: 150 A 167 | E73: 18 | F73: Número asignado por la Secretaría de Gobernación 18 posiciones en forma alfanumérica
B74: Identificador del formato | C74: N | D74: 168 | E74: 1 | F74: Dígito nuevo (9).
B77: Guía para la integración de movimientos afiliatorios Los siguientes dos son movimientos que se han creado exclusivamente para las empresas de plataformas digitales.
B78: Presentar, dentro de los primeros cinco días naturales del mes inmediato posterior al mes del aseguramiento, los movimientos afiliatorios de baja de las personas que no califiquen como personas trabajadoras de plataformas digitales, debiendo notificarlo de manera simultánea al IMSS y a dichas personas. Fundamento: Reglas IMSS 4.1 inciso e)
B79: Guía para la integración de movimientos afiliatorios Cancelación de inscripción En atención a la siguiente regla, deberá presentar el movimiento de cancelación de inscripción:
B80: Este movimiento elimina la inscripción vigente en la cuenta individual del trabajador, si la persona alcanzó el mínimo de ingresos del mes no deberá utilizarse la cancelación, sino el movimiento de baja presentado antes.
B83: Nombre del campo | C83: Tipo | D83: Posiciones | E83: Longitud | F83: Características / valores
B84: Número de Registro Patronal | C84: AN | D84: 01 a 11 | E84: 11 | F84: Registro asignado por el IMSS en 11 posiciones alfanumérico
B85: Número de Seguridad Social | C85: N | D85: 12 a 22 | E85: 11 | F85: Número de registro del trabajador asignado por el IMSS
B86: Primer Apellido | C86: A | D86: 23 a 49 | E86: 27 | F86: Primer Apellido del Asegurado
B87: Segundo Apellido | C87: A | D87: 50 a 76 | E87: 27 | F87: Segundo Apellido del Asegurado
B88: Nombre(S) | C88: A | D88: 77 a 103 | E88: 27 | F88: Nombre(s) del asegurado
B89: Sin contenido | C89: A | D89: 104 a 108 | E89: 15 | F89: Espacios en blanco
B90: Fecha de movimiento | C90: N | D90: 119 a 126 | E90: 8 | F90: Fecha de inicio del periodo a cancelar (DDMMYYYY)
B91: Sin contenido | C91: A | D91: 127 a 131 | E91: 5 | F91: Espacios en blanco
B92: Tipo de movimiento | C92: N | D92: 132 133 | E92: 2 | F92: 54 - Cancelación de periodo
B93: Sin contenido | C93: A | D93: 134 a 138 | E93: 5 | F93: Espacios en blanco
B94: Clave del trabajador | C94: AN | D94: 139 A 148 | E94: 10 | F94: Clave asignada por el patrón
B95: Causa de baja | C95: A | D95: 149 | E95: 1 | F95: 4 - Defunción 6 - Otras 9 - Jubilación A - Pensión
B96: Clave única de registro de población | C96: AN | D96: 150 A 167 | E96: 18 | F96: Número asignado por la Secretaría de Gobernación 18 posiciones en forma alfanumérica
B97: Identificador del formato | C97: B | D97: 168 | E97: 1 | F97: Dígito nuevo (9).
B100: Respecto de las personas trabajadoras de plataformas digitales que cumplan con los requisitos de la LFT, ajustar el salario base de cotización dentro de los primeros cinco días naturales del mes inmediato posterior al mes del aseguramiento, para lo cual deberán presentar los movimientos afiliatorios respectivos, en términos de lo dispuesto por el numeral 6 de las presentes Reglas. Fundamento: Reglas IMSS 4.1 inciso f)
B101: Guía para la integración de movimientos afiliatorios Corrección de salario A diferencia del movimiento de modificación de salario, este movimiento modifica directamente el salario registrado mediante el reingreso vigente. Lo anterior permite cumplir la regla siguiente:
B103: Nombre del campo | C103: Tipo | D103: Posiciones | E103: Longitud | F103: Características / valores
B104: Número de Registro Patronal | C104: AN | D104: 01 a 11 | E104: 11 | F104: Registro asignado por el IMSS en 11 posiciones alfanumérico
B105: Número de Seguridad Social | C105: N | D105: 12 a 22 | E105: 11 | F105: Número de registro del trabajador asignado por el IMSS
B106: Primer Apellido | C106: A | D106: 23 a 49 | E106: 27 | F106: Primer Apellido del Asegurado
B107: Segundo Apellido | C107: A | D107: 50 a 76 | E107: 27 | F107: Segundo Apellido del Asegurado
B108: Nombre(S) | C108: A | D108: 77 a 103 | E108: 27 | F108: Nombre(s) del asegurado
B109: Salario base de cotización | C109: N | D109: 104 a 109 | E109: 6 | F109: Sueldo más prestaciones en forma diaria.
B110: Sin contenido | C110: A | D110: 110 a 116 | E110: 7 | F110: Espacios en blanco
B111: Fecha del movimiento | C111: N | D111: 119 a 126 | E111: 8 | F111: Fecha de inicio de labores (DDMMYYYY)
B112: Sin contenido | C112: A | D112: 127 a 131 | E112: 5 | F112: Espacios en blanco
B113: Tipo de movimiento | C113: N | D113: 132 a 133 | E113: 2 | F113: 55 - Corrección de salario
B114: Sin contenido | C114: A | D114: 134 a 138 | E114: 5 | F114: Espacios en blanco
B115: Clave del trabajador | C115: AN | D115: 139 A 148 | E115: 10 | F115: Clave asignada por el patrón
B116: Sin contenido | C116: A | D116: 149 | E116: 1 | F116: Espacios en blanco
B117: Clave única de registro de población | C117: AN | D117: 150 A 167 | E117: 18 | F117: Número asignado por la Secretaría de Gobernación 18 posiciones en forma alfanumérica
B118: Identificador del formato | C118: N | D118: 168 | E118: 1 | F118: Dígito nuevo (9).

Sheet DCUOTAS
C2: Ir al MENÚ
B3: Determinación de las cuotas obrero - patronales
B5: Nombre del trabajador
B6: Ejercicio de cálculo
B7: Salario diario
B8: Salario base de cotización
B9: Prima de riesgo de trabajo
B10: Salario mínimo general
B11: Valor de la UMA
B12: Días a cotizar
B13: Faltas
B14: Incapacidad
B17: Cuota patronal
B18: Riesgo de trabajo
B19: Salario base de cotización | C19: =C8 -> 0
B20: (x) Prima de riesgo de trabajo | C20: =C9 -> 0
B21: (=) Prima correspondiente | C21: =IFERROR(C19*C20,"") -> 0
B22: (x) Días a cotizar - faltas - incapacidad | C22: =C12-C13-C14 -> 0
B23: (=) Cuota x riesgo de trabajo | C23: =IFERROR(ROUND(C21*C22,2),"") -> 0
B26: Cuota patronal
B27: Enfermedad y maternidad cuota fija
B28: Valor de la UMA | C28: =C11 -> 0
B29: (X) Cuota patrón | C29: 0.204
B30: (=) Cuota diaria | C30: =IFERROR(C28*C29,"") -> 0
B31: (x) Días a cotizar - incapacidad | C31: =C12-C14 -> 0
B32: (=) Cuota patronal | C32: =IFERROR(C30*C31,"") -> 0
B34: Cuota patronal | E34: Cuota obrera
B35: Enfermedad y maternidad excedente 3 veces el salario mínimo del D.F. | E35: Enfermedad y maternidad excedente 3 veces el salario mínimo del D.F.
B36: Salario Base de Cotización | C36: =C8 -> 0 | E36: Salario Base de Cotización | F36: =C8 -> 0
B37: (-) 3 umas | C37: =ROUND(C11*3,2) -> 0 | E37: (-) 3 umas | F37: =ROUND(C11*3,2) -> 0
B38: (=) Excedente 3 umas | C38: =IFERROR(IF(C36>=C37,C36-C37,0),0) -> 0 | E38: (=) Excedente 3 umas | F38: =IFERROR(IF(F36>=F37,F36-F37,0),0) -> 0
B39: (x) Cuota patronal | C39: 0.011 | E39: (x) Cuota obrera | F39: 0.004
B40: (=) Cuota diaria | C40: =IFERROR(ROUND(C38*C39,4),0) -> 0 | E40: (=) Cuota diaria | F40: =IFERROR(ROUND(F38*F39,4),0) -> 0
B41: (x) Días a cotizar - incapacidad | C41: =C12-C14 -> 0 | E41: (x) Días a cotizar - incapacidad | F41: =C12-C14 -> 0
B42: (=) Cuota patronal excedente | C42: =IFERROR(C40*C41,0) -> 0 | E42: (=) Cuota obrera excedente | F42: =IFERROR(F40*F41,0) -> 0
B44: Cuota patronal | E44: Cuota obrera
B45: Enfermedad y maternidad prestaciones en dinero | E45: Enfermedad y maternidad prestaciones en dinero
B46: Salario base de cotización | C46: =C8 -> 0 | E46: Salario base de cotización | F46: =C8 -> 0
B47: (x) Cuota patronal | C47: 0.007 | E47: (x) Cuota patronal | F47: 0.0025
B48: (=) Prima correspondiente | C48: =IFERROR(C46*C47,"") -> 0 | E48: (=) Prima correspondiente | F48: =IFERROR(F46*F47,"") -> 0
B49: (x) Días a cotizar - incapacidad | C49: =C12-C14 -> 0 | E49: (x) Días a cotizar - incapacidad | F49: =C12-C14 -> 0
B50: (=) Cuota patronal | C50: =IFERROR(ROUND(C48*C49,2),"") -> 0 | E50: (=) Cuota obrera | F50: =IFERROR(F48*F49,0) -> 0
B52: Cuota patronal | E52: Cuota obrera
B53: Enfermedad y maternidad pensionados | E53: Enfermedad y maternidad pensionados
B54: Salario base de cotización | C54: =C8 -> 0 | E54: Salario base de cotización | F54: =C8 -> 0
B55: (x) Cuota patronal | C55: 0.0105 | E55: (x) Cuota patronal | F55: 0.00375
B56: (=) Prima correspondiente | C56: =IFERROR(C54*C55,"") -> 0 | E56: (=) Prima correspondiente | F56: =IFERROR(F54*F55,"") -> 0
B57: (x) Días a cotizar - incapacidad | C57: =C12-C14 -> 0 | E57: (x) Días a cotizar - incapacidad | F57: =C12-C14 -> 0
B58: (=) Cuota patronal | C58: =IFERROR(ROUND(C56*C57,2),"") -> 0 | E58: (=) Cuota obrera | F58: =IFERROR(F56*F57,0) -> 0
B60: Cuota patronal | E60: Cuota obrera
B61: Invalidez y vida | E61: Invalidez y vida
B62: Salario base de cotización | C62: =C8 -> 0 | E62: Salario base de cotización | F62: =C8 -> 0
B63: (x) Cuota patronal | C63: 0.0175 | E63: (x) Cuota patronal | F63: 0.00625
B64: (=) Prima correspondiente | C64: =IFERROR(C62*C63,"") -> 0 | E64: (=) Prima correspondiente | F64: =IFERROR(F62*F63,"") -> 0
B65: (x) Días a cotizar - incapacidad - faltas | C65: =C12-C13-C14 -> 0 | E65: (x) Días a cotizar - incapacidad - faltas | F65: =C12-C13-C14 -> 0
B66: (=) Cuota patronal | C66: =IFERROR(ROUND(C64*C65,2),"") -> 0 | E66: (=) Cuota obrera | F66: =IFERROR(F64*F65,0) -> 0
B68: Cuota patronal
B69: Retiro
B70: Salario base de cotización | C70: =C8 -> 0
B71: (x) Cuota patronal | C71: 0.02
B72: (=) Prima correspondiente | C72: =IFERROR(C70*C71,"") -> 0
B73: (x) Días a cotizar - faltas) | C73: =C12-C13 -> 0
B74: (=) Cuota patronal | C74: =IFERROR(ROUND(C72*C73,2),"") -> 0
B77: Cuota patronal | E77: Cuota obrera
B78: Cesantia en edad avanzada y vejez | E78: Cesantia en edad avanzada y vejez
B79: Salario base de cotización | C79: =C8 -> 0 | E79: Salario base de cotización | F79: =C8 -> 0
B80: (x) Cuota patronal | C80: =IFERROR(IF(AND(C8>0,C10>0,C11>0),VLOOKUP(C79,B112:K119,IF(C6=2023,3,IF(C6=2024,4,IF(C6=2025,5,IF(C6=2026,6,IF(C6=2027,7,IF(C6=2028,8,IF(C6=2029,9,IF(C6=2030,10,""))))))))),""),"") ->  | E80: (x) Cuota patronal | F80: 0.01125
B81: (=) Prima correspondiente | C81: =IFERROR(C79*C80,"") ->  | E81: (=) Prima correspondiente | F81: =IFERROR(F79*F80,"") -> 0
B82: (x) Días a cotizar - incapacidad - faltas | C82: =C12-C13-C14 -> 0 | E82: (x) Días a cotizar - incapacidad - faltas | F82: =C12-C13-C14 -> 0
B83: (=) Cuota patronal | C83: =IFERROR(ROUND(C81*C82,2),"") ->  | E83: (=) Cuota obrera | F83: =IFERROR(F81*F82,0) -> 0
B86: Cuota patronal
B87: Guarderia
B88: Salario base de cotización | C88: =C8 -> 0
B89: (x) Cuota patronal | C89: 0.01
B90: (=) Prima correspondiente | C90: =IFERROR(C88*C89,"") -> 0
B91: (x) Días a cotizar - incapacidad - faltas | C91: =C12-C13-C14 -> 0
B92: (=) Cuota patronal | C92: =IFERROR(ROUND(C90*C91,2),"") -> 0
D95: Patrón | E95: Trabajador
B96: Riesgo de trabajo | D96: =C23 -> 0
B97: Enfermedad y maternidad cuota fija | D97: =C32 -> 0
B98: Enfermedad y maternidad excedente 3 veces el salario mínimo del D.F. | D98: =C42 -> 0 | E98: =F42 -> 0
B99: Enfermedad y maternidad prestaciones en dinero | D99: =C50 -> 0 | E99: =F50 -> 0
B100: Enfermedad y maternidad pensionados | D100: =C58 -> 0 | E100: =F58 -> 0
B101: Invalidez y vida | D101: =C66 -> 0 | E101: =F66 -> 0
B102: Retiro | D102: =C74 -> 0
B103: Cesantia en edad avanzada y vejez | D103: =C83 ->  | E103: =F83 -> 0
B104: Guarderia | D104: =C92 -> 0
B105: Total | D105: =SUM(D96:D104) -> 0 | E105: =SUM(E96:E103) -> 0
B108: =IF(C7=C10,"El importe le corresponde cubrirlo al patrón de conformidad con el artículo 36 LSS","") -> El importe le corresponde cubrirlo al patrón de conformidad con el artículo 36 LSS
B110: Cesantía en edad avanzada y vejez | D110: % a aplicar
B111: Valor mímino | C111: Valor máximo | D111: 2023 | E111: 2024 | F111: 2025 | G111: 2026 | H111: 2027 | I111: 2028 | J111: 2029 | K111: 2030
B112: =C10 -> 0 | C112: =C10 -> 0 | D112: 0.0315 | E112: 0.0315 | F112: 0.0315 | G112: 0.0315 | H112: 0.0315 | I112: 0.0315 | J112: 0.0315 | K112: 0.0315
B113: =IFERROR(ROUND(C10*1.01,2),"") -> 0 | C113: =IFERROR(ROUND($C$11*1.5,2),"") -> 0 | D113: 0.03281 | E113: 0.03413 | F113: 0.03544 | G113: 0.03676 | H113: 0.03807 | I113: 0.03939 | J113: 0.0407 | K113: 0.04202
B114: =IFERROR(ROUND($C$11*1.51,2),"") -> 0 | C114: =IFERROR(ROUND($C$11*2,2),"") -> 0 | D114: 0.03575 | E114: 0.04 | F114: 0.04426 | G114: 0.04851 | H114: 0.05276 | I114: 0.05701 | J114: 0.06126 | K114: 0.06552
B115: =IFERROR(ROUND($C$11*2.01,2),"") -> 0 | C115: =IFERROR(ROUND($C$11*2.5,2),"") -> 0 | D115: 0.03751 | E115: 0.04353 | F115: 0.04954 | G115: 0.05556 | H115: 0.06157 | I115: 0.06759 | J115: 0.0736 | K115: 0.07962
B116: =IFERROR(ROUND($C$11*2.51,2),"") -> 0 | C116: =IFERROR(ROUND($C$11*3,2),"") -> 0 | D116: 0.03869 | E116: 0.04588 | F116: 0.05307 | G116: 0.06026 | H116: 0.06745 | I116: 0.07464 | J116: 0.08183 | K116: 0.08902
B117: =IFERROR(ROUND($C$11*3.01,2),"") -> 0 | C117: =IFERROR(ROUND($C$11*3.5,2),"") -> 0 | D117: 0.03953 | E117: 0.04756 | F117: 0.05559 | G117: 0.06361 | H117: 0.07164 | I117: 0.07967 | J117: 0.0877 | K117: 0.09573
B118: =IFERROR(ROUND($C$11*3.51,2),"") -> 0 | C118: =IFERROR(ROUND($C$11*4.5,2),"") -> 0 | D118: 0.04016 | E118: 0.04882 | F118: 0.05747 | G118: 0.06613 | H118: 0.07479 | I118: 0.08345 | J118: 0.09211 | K118: 0.10077
B119: =IFERROR(ROUND($C$11*4.01,2),"") -> 0 | C119: 99999999999 | D119: 0.04241 | E119: 0.05331 | F119: 0.06422 | G119: 0.07513 | H119: 0.08603 | I119: 0.09694 | J119: 0.10784 | K119: 0.11875

Sheet INFONAVIT
F1: Ir al MENÚ
B3: Artículo 29 LINFONAVIT.- Son obligaciones de los patrones: II.- Determinar el monto de las aportaciones del cinco por ciento sobre el salario de los trabajadores a su servicio y efectuar el pago en las entidades receptoras que actúen por cuenta y orden del Instituto, para su abono en la subcuenta de vivienda de las cuentas individuales de los trabajadores previstas en los sistemas de ahorro para el retiro, en los términos de la presente Ley y sus reglamentos, así como en lo conducente, conforme a lo previsto en la Ley del Seguro Social y en la Ley Federal del Trabajo. En lo que corresponde a la integración y cálculo de la base y límite superior salarial para el pago de aportaciones, se aplicará lo contenido en la Ley del Seguro Social. ...........................................
B4: III.- Hacer los descuentos a sus trabajadores en sus salarios, conforme a lo previsto en los artículos 97 y 110 de la Ley Federal del Trabajo, que se destinen al pago de abonos para cubrir préstamos otorgados por el Instituto, así como enterar el importe de dichos descuentos en las entidades receptoras que actúen por cuenta y orden del Instituto, en la forma y términos que establece esta Ley y sus disposiciones reglamentarias. La integración y cálculo de la base salarial para efectos de los descuentos será la contenida en la fracción II del presente artículo. A fin de que el Instituto pueda individualizar dichos descuentos, los patrones deberán proporcionarle la información relativa a cada trabajador en la forma y periodicidad que al efecto establezcan esta Ley y sus disposiciones reglamentarias;
B5: Segundo párrafo La obligación de efectuar las aportaciones a que se refiere la fracción II anterior, se suspenderá cuando no se paguen salarios por ausencias en los términos de la Ley del Seguro Social, siempre que se dé aviso oportuno al Instituto, en conformidad al artículo 31. Tratándose de incapacidades expedidas por el Instituto Mexicano del Seguro Social, subsistirá la obligación del pago de aportaciones. Cuando se trate de la obligación de hacer los descuentos a que se refiere la fracción III no se suspenderá por ausencias o incapacidades en términos de la Ley del Seguro Social. Párrafo adicionado DOF 06-01-1997. Reformado DOF 21-02-2025
B7: INSTITUTO DEL FONDO NACIONAL DE LA VIVIENDA PARA LOS TRABAJADORES AVISO por el que se hace del conocimiento del público en general el plazo legal otorgado a los patrones a efecto de realizar los ajustes a sus sistemas y procesos administrativos internos para determinar, realizar y enterar los descuentos a los salarios de sus trabajadores que se destinen al pago de abonos para cubrir préstamos otorgados por el Instituto con base en la reforma del artículo 29 de la Ley del Instituto del Fondo Nacional de la Vivienda para los Trabajadores, publicada el 21 de febrero de 2025, en los términos que se indican. PROCESOS ADMINISTRATIVOS INTERNOS PARA DETERMINAR, REALIZAR Y ENTERAR LOS DESCUENTOS A LOS SALARIOS DE SUS TRABAJADORES QUE SE DESTINEN AL PAGO DE ABONOS PARA CUBRIR PRÉSTAMOS OTORGADOS POR EL INSTITUTO CON BASE EN LA REFORMA DEL ARTÍCULO 29 DE LA LEY DEL INSTITUTO DEL FONDO NACIONAL DE LA VIVIENDA PARA LOS TRABAJADORES, PUBLICADA EN EL DIARIO OFICIAL DE LA FEDERACIÓN EL 21 DE FEBRERO DE 2025, EN LOS TÉRMINOS QUE SE INDICAN ÚNICO.- De conformidad con lo dispuesto por los artículos 1o.; 16 fracciones II, XII, XX y XX; 23 fracciones I, y X, todos de la Ley del Instituto del Fondo Nacional de la Vivienda para los Trabajadores; 4o., fracción V, del Estatuto Orgánico del Instituto del Fondo Nacional de la Vivienda para los Trabajadores; así como la Resolución RCA-14500-03/25 de 19 de marzo de 2025, del Consejo de Administración del Instituto del Fondo Nacional de la Vivienda para los Trabajadores; así como los demás ordenamientos aplicables, se hace del conocimiento de los acreditados, derechohabientes, patrones, y demás público en general que, se reconoce un plazo razonable para la transición en la implementación de la reforma al artículo 29 de la Ley del Instituto del Fondo Nacional de la Vivienda para los Trabajadores, prevista en el DECRETO POR EL QUE SE REFORMAN, ADICIONAN Y DEROGAN DIVERSAS DISPOSICIONES DE LA LEY DEL INSTITUTO DEL FONDO NACIONAL DE LA VIVIENDA PARA LOS TRABAJADORES Y DE LA LEY FEDERAL DEL TRABAJO, EN MATERIA DE VIVIENDA CON ORIENTACIÓN SOCIAL publicada en el Diario Oficial de la Federación del 21 de febrero de 2025, vigente a partir del día siguiente al de su publicación, por lo que los patrones deberán realizar los ajustes a sus sistemas y procesos para determinar, realizar y enterar en términos de la legislación aplicable, los descuentos a los salarios de sus trabajadores que se destinen al pago de abonos para cubrir préstamos otorgados por el Instituto, para aplicar esta disposición a partir del pago de salarios correspondientes al 4° bimestre de 2025; esto es, los correspondientes a los meses de julio y agosto, que deberá realizarse a más tardar el 17 de septiembre de 2025.
B10: Trabajador 1
B11: Crédito INFONAVIT | C11: 1250 | D11: Por mes
B12: Días de julio | C12: 31
B13: (=) Descuento x día | C13: =C11/C12 -> 40.32258065
B15: Día trabajado | C15: Día trabajado | D15: Falta | E15: Incapacidad | F15: Días laborados | G15: Días acumulados | H15: Descuento | I15: Acumulado del descuento
B16: =C12 -> 31 | C16: =IF(B16>=1,1,"") -> 1 | F16: =IFERROR(C16-D16-E16,0) -> 1 | G16: =IFERROR(B16-F16,0) -> 30 | H16: =IFERROR(IF(F16=1,C13,0),0) -> 40.32258065 | I16: =IFERROR($C$11-SUM($H$16:H16),0) -> 1209.677419
B17: =IF((B16-1)>=1,B16-1,"") -> 30 | C17: =IF(B17>=1,1,"") -> 1 | F17: =IFERROR(C17-D17-E17,0) -> 1 | G17: =IFERROR(B17-F17,0) -> 29 | H17: =IFERROR(IF(F17=1,I16/G16,0),0) -> 40.32258065 | I17: =IFERROR($C$11-SUM($H$16:H17),0) -> 1169.354839
B18: =IF((B17-1)>=1,B17-1,"") -> 29 | C18: 1 | F18: 1 | G18: 28 | H18: =IFERROR(IF(F18=1,I17/G17,0),0) -> 40.32258065 | I18: =IFERROR($C$11-SUM($H$16:H18),0) -> 1129.032258
B19: 28 | C19: 1 | F19: 1 | G19: 27 | H19: 40.32258065 | I19: =IFERROR($C$11-SUM($H$16:H19),0) -> 1088.709677
B20: 27 | C20: 1 | F20: 1 | G20: 26 | H20: 40.32258065 | I20: =IFERROR($C$11-SUM($H$16:H20),0) -> 1048.387097
B21: 26 | C21: 1 | F21: 1 | G21: 25 | H21: 40.32258065 | I21: =IFERROR($C$11-SUM($H$16:H21),0) -> 1008.064516
B22: 25 | C22: 1 | F22: 1 | G22: 24 | H22: 40.32258065 | I22: =IFERROR($C$11-SUM($H$16:H22),0) -> 967.7419355
B23: 24 | C23: 1 | D23: 1 | F23: 0 | G23: 24 | H23: 0 | I23: =IFERROR($C$11-SUM($H$16:H23),0) -> 967.7419355
B24: 23 | C24: 1 | F24: 1 | G24: 22 | H24: 40.32258065 | I24: =IFERROR($C$11-SUM($H$16:H24),0) -> 927.4193548
B25: 22 | C25: 1 | F25: 1 | G25: 21 | H25: 42.15542522 | I25: =IFERROR($C$11-SUM($H$16:H25),0) -> 885.2639296
B26: 21 | C26: 1 | F26: 1 | G26: 20 | H26: 42.15542522 | I26: =IFERROR($C$11-SUM($H$16:H26),0) -> 843.1085044
B27: 20 | C27: 1 | F27: 1 | G27: 19 | H27: 42.15542522 | I27: =IFERROR($C$11-SUM($H$16:H27),0) -> 800.9530792
B28: 19 | C28: 1 | F28: 1 | G28: 18 | H28: 42.15542522 | I28: =IFERROR($C$11-SUM($H$16:H28),0) -> 758.797654
B29: 18 | C29: 1 | F29: 1 | G29: 17 | H29: 42.15542522 | I29: =IFERROR($C$11-SUM($H$16:H29),0) -> 716.6422287
B30: 17 | C30: 1 | F30: 1 | G30: 16 | H30: 42.15542522 | I30: =IFERROR($C$11-SUM($H$16:H30),0) -> 674.4868035
B31: 16 | C31: 1 | F31: 1 | G31: 15 | H31: 42.15542522 | I31: =IFERROR($C$11-SUM($H$16:H31),0) -> 632.3313783
B32: 15 | C32: 1 | F32: 1 | G32: 14 | H32: 42.15542522 | I32: =IFERROR($C$11-SUM($H$16:H32),0) -> 590.1759531
B33: 14 | C33: 1 | F33: 1 | G33: 13 | H33: 42.15542522 | I33: =IFERROR($C$11-SUM($H$16:H33),0) -> 548.0205279
B34: 13 | C34: 1 | F34: 1 | G34: 12 | H34: 42.15542522 | I34: =IFERROR($C$11-SUM($H$16:H34),0) -> 505.8651026
B35: 12 | C35: 1 | F35: 1 | G35: 11 | H35: 42.15542522 | I35: =IFERROR($C$11-SUM($H$16:H35),0) -> 463.7096774
B36: 11 | C36: 1 | E36: 1 | F36: 0 | G36: 11 | H36: 0 | I36: =IFERROR($C$11-SUM($H$16:H36),0) -> 463.7096774
B37: 10 | C37: 1 | E37: 1 | F37: 0 | G37: 10 | H37: 0 | I37: =IFERROR($C$11-SUM($H$16:H37),0) -> 463.7096774
B38: 9 | C38: 1 | E38: 1 | F38: 0 | G38: 9 | H38: 0 | I38: =IFERROR($C$11-SUM($H$16:H38),0) -> 463.7096774
B39: 8 | C39: 1 | E39: 1 | F39: 0 | G39: 8 | H39: 0 | I39: =IFERROR($C$11-SUM($H$16:H39),0) -> 463.7096774
B40: 7 | C40: 1 | E40: 1 | F40: 0 | G40: 7 | H40: 0 | I40: =IFERROR($C$11-SUM($H$16:H40),0) -> 463.7096774
B41: 6 | C41: 1 | F41: 1 | G41: 5 | H41: 66.24423963 | I41: =IFERROR($C$11-SUM($H$16:H41),0) -> 397.4654378
B42: 5 | C42: 1 | F42: 1 | G42: 4 | H42: 79.49308756 | I42: =IFERROR($C$11-SUM($H$16:H42),0) -> 317.9723502
B43: 4 | C43: 1 | F43: 1 | G43: 3 | H43: 79.49308756 | I43: =IFERROR($C$11-SUM($H$16:H43),0) -> 238.4792627
B44: 3 | C44: 1 | F44: 1 | G44: 2 | H44: 79.49308756 | I44: =IFERROR($C$11-SUM($H$16:H44),0) -> 158.9861751
B45: 2 | C45: 1 | F45: 1 | G45: 1 | H45: 79.49308756 | I45: =IFERROR($C$11-SUM($H$16:H45),0) -> 79.49308756
B46: 1 | C46: =IF(B46<>"",1,"") -> 1 | F46: =IFERROR(IF(B46<>"",C46-D46-E46,""),"") -> 1 | G46: =IFERROR(IF(B46<>"",B46-F46,""),"") -> 0 | H46: =IFERROR(IF(B46<>"",IF(F46=1,I45/G45,0),""),"") -> 79.49308756 | I46: =IFERROR(IF(B46<>"",$C$11-SUM($H$16:H46),""),"") -> 0

Sheet COSTOU
D2: Ir al MENÚ
B4: 11. DE LAS ATENCIONES A NO DERECHOHABIENTES. 11.1 Las personas trabajadoras que presten servicios a través de plataformas digitales consideradas trabajadoras independientes que hayan hecho uso de alguna prestación asociada a la seguridad social, ya sea por cuenta propia o en favor de sus beneficiarios legales, deberá registrarse y cubrir las cuotas obrero patronales a razón de un salario mínimo general de la Ciudad de México, de forma retroactiva como incorporación voluntaria al Régimen Obligatorio como persona trabajadora independiente, sujeto a los tiempos de espera del artículo 83 del RACERF. De lo contrario, se le cobrarán las prestaciones otorgadas como atención a no derechohabiente, conforme a los costos unitarios vigentes. En caso de que las prestaciones otorgadas sean solamente prestaciones en especie del seguro de enfermedades y maternidad, el IMSS solicitará a Servicios de Salud del Instituto Mexicano del Seguro Social para el Bienestar (IMSS-Bienestar) el pago por atención a no derechohabiente de las prestaciones otorgadas a la persona trabajadora de plataformas digitales o sus beneficiarios, con base en los convenios que tenga suscrito con dicho organismo público descentralizado.
B6: Opciones de incorporación
B7: El importe que te correspondería pagar por tu aseguramiento, con un salario base de cotización diario de $278.8 y una prima de seguro de riesgos de trabajo de 4.65325 es el siguiente:
B9: TIPO DE ASEGURAMIENTO | C9: FECHA DE COBERTURA | D9: PAGO DE CUOTAS OBRERO PATRONALES
B10: Mensual | C10: Del 1 al 31 de Agosto de 2025 | D10: 2156.98
B11: Bimestral | C11: Del 1 de Agosto de 2025 al 30 de Septiembre de 2025 | D11: 4244.39
B12: Semestral | C12: Del 1 de Agosto de 2025 al 31 de Enero de 2026 | D12: 12802.68
B13: Anual | C13: Del 1 de Agosto de 2025 al 31 de Julio de 2026 | D13: 25396.57
B15: REGLAMENTO DE LA LEY DEL SEGURO SOCIAL EN MATERIA DE AFILIACIÓN, CLASIFICACIÓN DE EMPRESAS, RECAUDACIÓN Y FISCALIZACIÓN.
B16: Artículo 83. No se proporcionarán las prestaciones en especie, al asegurado o sus beneficiarios, durante los tiempos y por los padecimientos y tratamientos siguientes: TIEMPOS:
B17: I. Seis meses: Tumoración benigna de mama.
B18: II. Diez meses: Parto.
B19: III. Un año: a).- Litotripcia. b).- Cirugía de padecimientos ginecológicos, excepto neoplasias malignas de útero, ovarios y piso perineal. c).- Cirugía de insuficiencia venosa y várices. d).- Cirugía de senos paranasales y nariz. e).- Cirugía de varicocele. f).- Hemorroidectomía y cirugía de fístulas rectales y prolapso de recto. g).- Amigdalectomía y adenoidectomía. h).- Cirugía de hernias, excepto hernia de disco intervertebral. I).- Cirugía de hallux valgas. J).- Cirugía de estrabismo.
B20: IV. Dos años: Cirugía ortopédica.
B21: Estos tiempos serán computados a partir de la fecha en que el asegurado y sus beneficiarios queden inscritos ante el Instituto. Transcurridos los mismos podrán hacer uso de las prestaciones en especie respecto de los padecimientos y tratamientos antes señalados. La restricción para el otorgamiento de las prestaciones en especie respecto de los padecimientos y tratamientos enunciados en este artículo, no impide que el asegurado o sus beneficiarios hagan uso de dichas prestaciones por otro padecimiento o tratamiento diverso.
B23: D.O.F 13/12/2024
B24: Tabla que contiene los Costos Unitarios por Nivel de Atención Médica actualizados al año 2025, para la determinación de créditos fiscales derivados de capitales constitutivos, inscripciones improcedentes y atención a no derechohabientes.
B25: TIPO DE SERVICIO | D25: COSTO UNITARIO ACTUALIZADO AL 2025
D26: (pesos)
B27: ATENCIÓN EN UNIDADES DE PRIMER NIVEL
B28: Consulta de Medicina Familiar1 | D28: 1296
B29: Consulta Dental (Estomatología) | D29: 942
B30: Atención de Urgencias | D30: 1037
B31: Curaciones | D31: 348
B32: Estudio de Laboratorio Clínico | D32: 116
B33: Estudio de Radiodiagnóstico | D33: 351
B34: Traslado en Ambulancia | D34: 2370
B35: Día paciente en Hospitalización | D35: 15018
B36: Consulta/Sesión de Medicina Física y Rehabilitación | D36: 1864
B37: Terapia Psicológica | D37: 1675
B38: Sesión de Diálisis | D38: 152
B39: Prueba rápida de detección de antígenos del virus SARS-CoV-2 (COVID-19) | D39: 301
B40: Prueba RT-PCR de detección de material genético del virus SARS-CoV-2 (COVID-19) | D40: 1385
B41: ATENCIÓN EN UNIDADES DE SEGUNDO NIVEL
B42: Consulta de Medicina Familiar1 | D42: 1296
B43: Consulta Dental (Estomatología) | D43: 942
B44: Consulta de Especialidades2 | D44: 1851
B45: Atención de Urgencias | D45: 2642
B46: Día Paciente en Hospitalización | D46: 15018
B47: Día Paciente en Incubadora | D47: 15018
B48: Día Paciente en Terapia Intensiva | D48: 72381
B49: Curaciones | D49: 348
B50: Estudio de Laboratorio Clínico | D50: 139
B51: Citología Exfoliativa | D51: 385
B52: Estudio de Medicina Nuclear | D52: 2169
B53: Estudio de Electrodiagnóstico | D53: 1393
B54: Estudio de Radiodiagnóstico | D54: 531
B55: Estudio de Ultrasonografía | D55: 846
B56: Estudio de Tomografía Axial | D56: 3886
B57: Estudio de Resonancia Magnética | D57: 3900
B58: Estudio/Procedimiento de Endoscopía | D58: 4818
B59: Consulta/Sesión de Medicina Física y Rehabilitación | D59: 1878
B60: Sesión de Radioterapia | D60: 2851
B61: Estudio de Anatomía Patológica | D61: 333
B62: Intervención Quirúrgica | D62: 39851
B63: Intervención de Tococirugía | D63: 22614
B64: Traslado en Ambulancia | D64: 3822
B65: Sesión de Quimioterapia | D65: 4363
B66: Sesión de Hemodiálisis | D66: 3768
B67: Estudio/Procedimiento de Hemodinámica | D67: 67122
B68: Terapia Psicológica | D68: 1675
B69: Estudio/Sesión de Gabinete de Tratamiento3 | D69: 303
B70: Sesión de Terapia/Reeducación Ocupacional | D70: 265
B71: Servicio de Banco de Sangre | D71: 356
B72: Consulta a Donadores | D72: 630
B73: Sesión de Diálisis | D73: 152
B74: Servicio de Litotripsia | D74: 7034
B75: Prueba rápida de detección de antígenos del virus SARS-CoV-2 (COVID-19) | D75: 301
B76: Prueba RT-PCR de detección de material genético del virus SARS-CoV-2 (COVID-19) | D76: 1385
B77: Día paciente con ventilación mecánica | D77: 49175
B78: ATENCIÓN EN UNIDADES DE TERCER NIVEL
B79: Consulta de Especialidades2 | D79: 2920
B80: Atención de Urgencias | D80: 3857
B81: Día Paciente en Hospitalización | D81: 15018
B82: Día Paciente en Incubadora | D82: 15018
B83: Día Paciente en Terapia Intensiva | D83: 72381
B84: Estudio de Laboratorio Clínico | D84: 246
B85: Citología Exfoliativa | D85: 385
B86: Estudio de Medicina Nuclear | D86: 2169
B87: Estudio de Electrodiagnóstico | D87: 1393
B88: Estudio de Radiodiagnóstico | D88: 681
B89: Estudio de Ultrasonografía | D89: 846
B90: Estudios de Tomografía Axial | D90: 3886
B91: Estudios de Resonancia Magnética | D91: 3900
B92: Procedimiento de Cardiología Intervencionista _ Hemodinámica | D92: 67122
B93: Estudio/Procedimiento de Endoscopía | D93: 4818
B94: Consulta/Sesión de Medicina Física y Rehabilitación | D94: 3661
B95: Sesión de Radioterapia | D95: 2851
B96: Sesión de Quimioterapia | D96: 4363
B97: Estudio de Anatomía Patológica | D97: 543
B98: Intervención Quirúrgica | D98: 46930
B99: Intervención de Tococirugía | D99: 22614
B100: Traslado en Ambulancia | D100: 8974
B101: Sesión de Hemodiálisis | D101: 3768
B102: Terapia Psicológica | D102: 1675
B103: Estudio/Sesión de Gabinete de Tratamiento3 | D103: 303
B104: Sesión de Terapia/Reeducación Ocupacional | D104: 265
B105: Servicio de Banco de Sangre | D105: 486
B106: Consulta a Donadores | D106: 630
B107: Sesión de Diálisis | D107: 152
B108: Servicio de Litotripsia | D108: 7034
B109: Prueba rápida de detección de antígenos del virus SARS-CoV-2 (COVID-19) | D109: 301
B110: Prueba RT-PCR de detección de material genético del virus SARS-CoV-2 (COVID-19) | D110: 1385
B111: Día paciente con ventilación mecánica | D111: 49175
B112: 1.Incluye las Consultas de Salud en el Trabajo en el Primer Nivel de Atención.
B113: 2.Incluye las Consultas de Salud en el Trabajo en el Segundo y Tercer Nivel de Atención.
B114: 3.Gabinete de Tratamiento incluye terapias de lenguaje, respiratoria, recreativa, fisiología pulmonar, entre otros tratamientos de gabinete.

Sheet CFDIE
F4: Ir al MENÚ
F6: Emisor | I6: Receptor | R6: Trasladados | T6: Retenciones | X6: Aerolíneas
B7: Fecha | C7: Tipo de comprobante | D7: Serie y folio | E7: Folio fiscal | F7: RFC | G7: NOMBRE | H7: Régimen fiscal | I7: RFC | J7: Nombre | K7: Régimen fiscal | L7: USO | M7: Descripción | N7: Objeto de impuesto | O7: Importe | P7: Descuento | Q7: Importe - descuento | R7: IEPS | S7: IVA | T7: ISR | U7: IVA | V7: IEPS | W7: Impuesto sobre hospedaje | X7: TUA | Y7: Otros cargos | Z7: Total del comprobante | AA7: Método de pago | AB7: Forma de pago | AC7: Moneda | AD7: Tipo de cambio | AE7: Importe sin convertir | AF7: Fecha de cancelación | AG7: Tipo de relación | AH7: UUID relacionado | AI7: Ruta del archivo

Sheet RPAGOSE
B2: Hoja para importar los XML emitidos con el complemento de recepción de pagos
G4: Ir al MENÚ
V5: Complemento de recepción de pagos
J6: Emisor | M6: Receptor | P6: Campos generales CFDI | AG6: Solo que el pago se reciba en SPEI | AK6: Documentos que se cobran | AU6: Timbre fiscal del complemento de recepción de pagos | AX6: Impuestos trasladados | BF6: Impuestos retenidos
B7: Fecha de emisión | C7: Folio | D7: Serie | E7: Subtotal | F7: Moneda | G7: Total | H7: Tipo de comprobante | I7: Lugar Expedicion | J7: Rfc | K7: Nombre | L7: Régimen fiscal | M7: RFC receptor | N7: Nombre | O7: Régimen fiscal | P7: ClaveProdServ | Q7: Cantidad | R7: Unidad | S7: Descripcion | T7: ValorUnitario | U7: Importe | V7: Fecha de pago | W7: Forma de pago | X7: MonedaP | Y7: TipoCambioP | Z7: Monto | AA7: NumOperacion | AB7: RfcEmisorCtaOrd | AC7: NomBancoOrdExt | AD7: CtaOrdenante | AE7: RfcEmisorCtaBen | AF7: CtaBeneficiario | AG7: TipoCadPago | AH7: CertPago | AI7: CadPago | AJ7: SelloPago | AK7: IdDocumento | AL7: Serie | AM7: Folio | AN7: MonedaDR | AO7: TipoCambioDR | AP7: MetodoDePagoDR | AQ7: NumParcialidad | AR7: ImpSaldoAnt | AS7: ImpPagado | AT7: ImpSaldoInsoluto | AU7: Fecha de timbrado | AV7: UUID | AW7: Objeto de impuestos DR | AX7: Base para IEPS | AY7: Tipo factor | AZ7: Tasa o cuota | BA7: Total IEPS trasladado del comprobante | BB7: Base para IVA | BC7: Tipo factor | BD7: Tasa o cuota | BE7: Total IVA trasladado del comprobante | BF7: Base retención ISR | BG7: Tipo factor | BH7: Tasa o cuota | BI7: Retención de ISR | BJ7: Base retención IVA | BK7: Tipo factor | BL7: Tasa o cuota | BM7: Retención IVA | BN7: USO del CFDI | BO7: Base de ISR | BP7: Ruta del archivo | BQ7: Fecha de cancelación

Sheet CFDIR
F4: Ir al MENÚ
F6: Emisor | I6: Receptor | R6: Trasladados | T6: Retenciones | X6: Aerolíneas
B7: Fecha | C7: Tipo de comprobante | D7: Serie y folio | E7: Folio fiscal | F7: RFC | G7: NOMBRE | H7: Régimen fiscal | I7: RFC | J7: Nombre | K7: Régimen fiscal | L7: USO | M7: Descripción | N7: Objeto de impuesto | O7: Importe | P7: Descuento | Q7: Importe - descuento | R7: IEPS | S7: IVA | T7: ISR | U7: IVA | V7: IEPS | W7: Impuesto sobre hospedaje | X7: TUA | Y7: Otros cargos | Z7: Total del comprobante | AA7: Método de pago | AB7: Forma de pago | AC7: Moneda | AD7: Tipo de cambio | AE7: Importe sin convertir | AF7: Fecha de cancelación | AG7: Tipo de relación | AH7: UUID relacionado | AI7: Ruta

Sheet RPAGOSR
B2: Hoja para importar los XML emitidos con el complemento de recepción de pagos
G4: Ir al MENÚ
V5: Complemento de recepción de pagos
J6: Emisor | M6: Receptor | P6: Campos generales CFDI | AG6: Solo que el pago se reciba en SPEI | AK6: Documentos que se cobran | AU6: Timbre fiscal del complemento de recepción de pagos | AX6: Impuestos trasladados | BF6: Impuestos retenidos
B7: Fecha de emisión | C7: Folio | D7: Serie | E7: Subtotal | F7: Moneda | G7: Total | H7: Tipo de comprobante | I7: Lugar Expedicion | J7: Rfc | K7: Nombre | L7: Régimen fiscal | M7: RFC receptor | N7: Nombre | O7: Régimen fiscal | P7: ClaveProdServ | Q7: Cantidad | R7: Unidad | S7: Descripcion | T7: ValorUnitario | U7: Importe | V7: Fecha de pago | W7: Forma de pago | X7: MonedaP | Y7: TipoCambioP | Z7: Monto | AA7: NumOperacion | AB7: RfcEmisorCtaOrd | AC7: NomBancoOrdExt | AD7: CtaOrdenante | AE7: RfcEmisorCtaBen | AF7: CtaBeneficiario | AG7: TipoCadPago | AH7: CertPago | AI7: CadPago | AJ7: SelloPago | AK7: IdDocumento | AL7: Serie | AM7: Folio | AN7: MonedaDR | AO7: TipoCambioDR | AP7: MetodoDePagoDR | AQ7: NumParcialidad | AR7: ImpSaldoAnt | AS7: ImpPagado | AT7: ImpSaldoInsoluto | AU7: Fecha de timbrado | AV7: UUID | AW7: Objeto de impuestos DR | AX7: Base para IEPS | AY7: Tipo factor | AZ7: Tasa o cuota | BA7: Total IEPS trasladado del comprobante | BB7: Base para IVA | BC7: Tipo factor | BD7: Tasa o cuota | BE7: Total IVA trasladado del comprobante | BF7: Base retención ISR | BG7: Tipo factor | BH7: Tasa o cuota | BI7: Retención de ISR | BJ7: Base retención IVA | BK7: Tipo factor | BL7: Tasa o cuota | BM7: Retención IVA | BN7: USO del CFDI | BO7: Base de ISR | BP7: Ruta del archivo | BQ7: Fecha de cancelación

Sheet NOMINA
I2: Ir al MENÚ
AZ4: Vanta acciones | BB4: Tiempo extra | BF4: Jubilaciones, pensiones, retiro | BK4: Pagos por separación | BP4: Incapacidades
B5: Fecha de emisión | C5: Fecha de timbrado | D5: UUID | E5: Concepto | F5: Serie | G5: Folio | H5: Forma de pago | I5: Metodo de pago | J5: Moneda | K5: Registro patronal | L5: Nombre del patron | M5: Riesgo de puesto | N5: Concepto riesgo de puesto (este dato no pertenece al XML) | O5: No. De empleado | P5: Nombre del empleado | Q5: Departamento | R5: Puesto | S5: Clave de la entidad federrativa | T5: Estado (este dato no pertenece al XML) | U5: CURP | V5: RFC | W5: No. SS | X5: Fecha inicio relación laboral | Y5: Salario diario integrado | Z5: Salario base de cotización | AA5: Tipo de regimen | AB5: Tipo de régimen (este dato no pertenece al XML) | AC5: Tipo de jornada | AD5: Tipo de jornada (este dato no pertenece al XML) | AE5: Tipo de contrato | AF5: Tipo de contrato (este dato no pertenece al XML) | AG5: Antigüedad | AH5: Fecha inicial pago | AI5: Fecha final pago | AJ5: Fecha de pago | AK5: Periodicidad de pago | AL5: Periodicidad de pago (este dato no pertenece al XML) | AM5: Clave de percepción | AN5: Percepción | AO5: Percepción de acuerdo al catálogo del SAT (este dato no pertenece al XML) | AP5: Percepción exenta | AQ5: Percepción gravado | AR5: Clave de deducción | AS5: Deducción | AT5: Deducción de acuerdo al catálogo del SAT (este dato no pertenece al XML) | AU5: Importe deducción | AV5: Total del comprobante | AW5: Tipo de relación | AX5: UUID tipo de relación | AY5: Subsidio al empleo causado | AZ5: Valor de mercado | BA5: Precio al otorgarse | BB5: Días | BC5: Tipo de horas | BD5: Horas extras | BE5: Importe pagado | BF5: Total en una sola exhibición | BG5: Total parcialidad | BH5: Monto diario | BI5: Ingreso acumulable | BJ5: Ingreso no acumulable | BK5: Total pagado | BL5: No. de años de servicio | BM5: Último sueldo mensual ordinario | BN5: Ingreso acumulable | BO5: Ingreso no acumulable | BP5: Días de incapacidad | BQ5: Tipo de incapacidad | BR5: Importe monetario | BS5: Dìas pagados | BT5: Ruta

Sheet PP PFAEP
A1: 0
B2: Determinación del pago provisional de persona física actividad empresarial y profesional
C4: Año de cálculo | I4: Ir al MENÚ
C5: Régimen fiscal
C6: Régimen fiscal
C7: INGRESOS | D7: Enero | E7: Febrero | F7: Marzo | G7: Abril | H7: Mayo | I7: Junio | J7: Julio | K7: Agosto | L7: Septiembre | M7: Octubre | N7: Noviembre | O7: Diciembre
C8: Ingresos acumulables
C9: CFDI emitidos de tipo ingreso con método de pago PUE
C10: CFDI emitidos con complemento de pago
B11: Este campo no forma parte del aplicativo | C11: CFDI de tipo ingreso con método de pago PUE y tipo de relación 04 (sustitución de CFDI previos)
C12: (-) Ingresos a disminuir del mes
C13: IEPS / ISAN cobrado no trasladado de manera expresa y por separado
C14: Ingresos facturados en los que se determinó ganancia por enajenación
C15: Ingresos facturados pendientes de cancelación con aceptación del receptor
C16: Ingresos facturados en los que se determinó ganancia por fluctuación cambiaria
C17: Ingresos de personas físicas dedicadas a las artes plásticas
C18: (+) Ingresos adicionales del mes
C19: Condonaciones, quitas o remisiones
C20: Gastos por cuenta de tercersos sin comprobante fiscal
C21: Intereses cobrados derivados de la actividad empresarial o de la prestación de servicios profesionales
C22: Ganancia por enajenación de activos
C23: Ganancia efectivamente percibida por fluctuación cambiaria
C24: Ingresos derivados de las actividades de autotransporte (integrantes de coordinados)
C25: (-) Ingresos exentos
C26: (=) INGRESOS DEL MES
C27: INGRESOS DE MESES ANTERIORES
C28: (=) TOTAL DE INGRESOS DEL PERIODO
C30: DEDUCCIONES AUTORIZADAS
C31: Gastos de nómina del periodo no considerados en el prellenado
B32: No forma parte del aplicativo | C32: Salarios y asimilados a salarios gravados
C33: (-) PTU pagada
C34: (-) Víaticos
C35: (-) Ajuste a gravados
C36: Total de sueldos gravados
C37: Salarios y asimilados a salarios exentos
C38: (-) PTU pagada
C39: (-) Víaticos
C40: (-) Ajuste a Exento
C41: Total de sueldos exentos
C42: (x) Factor de no deducibles
C43: (=) Nómina no deducible de los exentos
C44: Impuesto sobre nómina
C45: Cuotas obrero patronales
C46: INFONAVIT
C47: Otros
C49: (+) Compras y gastos facturados del mes
A50: 0 | C50: CFDI recibidos con método de pago PUE, bancarizados con clave de uso G01
B51: Este campo no forma parte del aplicativo | C51: CFDI de tipo ingreso recibidos con método de pago PUE , bancarizado y clave de uso G01 y tipo de relación 04 (sustitución de CFDI previos)
A52: 0 | C52: CFDI recibidos con método de pago PUE bancarizados con clave de uso G03
B53: Este campo no forma parte del aplicativo | C53: CFDI de tipo ingreso recibidos con método de pago PUE , bancarizado y clave de uso G03 y tipo de relación 04 (sustitución de CFDI previos)
C54: CFDI recibidos con complemento de pago, bancarizados con clave de uso G01
C55: CFDI recibidos con complemento de pago, bancarizados con clave de uso G03
C56: (+) Devoluciones, descuentos y bonificaciones facturadas del mes
C57: (-) Compras y gastos no deducibles del mes
C58: (+) Compras y gastos del mes no considerados en el pre llenado
B59: Este campo no forma parte del aplicativo | C59: CFDI recibidos de tipo ingreso con método de pago PUE no bancarizados y clave de uso diferente a G01 y G03
C60: CFDI recibidos con complemento de pago, diferente a bancarizados con clave de uso diferente a G01 y G03
C61: (-) Facturas de egresos recibidas por compras y gastos del mes
C62: (=) Compras y gasto del mes
C63: (+) Deducción de inversiones
C64: (+) Deducción inmeditata de inversiones
C65: (=) TOTAL DE DEDUCCIONES AUTORIZADAS DEL MES
C66: TOTAL DE DEDUCCIONES DE MESES ANTERIORES
C67: (=) TOTAL DE DEDUCCIONES AUTORIZADAS DEL PERIODO
C68: (+) Facilidades administrativas o estímulos por aplicar
C69: Estímulo por cantratar adultos mayores (25% del salario pagado)
C70: Deducción del 25% del salario pagado por la contratqación de personas que padezcan discapacidad
C71: Deducción adicional por enajenación de libros, periódicos y revistas
C72: Deducción dquivalente hata 8% de ingresos propios sin documentación que reúna requisitos fiscales para contribuyentes dedicadas exclusivamente al autotransporte
C73: Deducción del costo de adquisición de terrenos por contribuyentes dedicados a la construcci´n y desarrollos inmobiliarios
C74: Deducción de donativos realizados a organismos públicos descentralizados del Gobierno Federal
C75: Total de deducciones autorizadas
C77: DETERMINACIÓN
C78: Total de ingresos del periodo
C79: Total de deducciones autorizadas
C80: (-) PTU pagada
C81: (-) Pérdidas fiscales de ejercicios anetriores que se aplican en el periodo
C82: (=) Base gravable
C83: Impuesto causado
C84: (-) Estímulos por aplicar
C85: Producción cinematográfica
C86: Estímulo a proyectos de inversión en las artes
C87: Crédito IEPS diéses automotriz para transporte público de personas
C88: Crédito IEPS diéses automotriz para transporte público de carga
C89: Crédito IEPS diéses automotriz para transporte público de trurístico
C90: Crédito 50% en el pago de peaje para trnansporte público de personas
C91: Crédito 50% en el pago de peaje para trnansporte público de carga
C92: Crédito 50% en el pago de peaje para trnansporte público de trurístico
C93: (=) Impuesto del periodo
C94: (-) Pagos provisionales efectuados con anterioridas
C95: Impuesto a cargo
C96: Estatus
C97: No. de operación de la declaración
C98: Fecha de presentación de la declaración
C99: (-) Total de ISR retenido
C100: ISR retenido
C101: Estatus
C102: No. de operación de la declaración
C103: Fecha de presentación de la declaración
C104: ISR retenido de meses anetriores, solo declraciones pagadas
C105: ISR retenido del mes
C106: (=) Impuesto a cargo
C108: PAGO
C109: A cargo
C110: (-) Subsidio para el empleo
C111: (-) Compensaciones
C112: Tipo
C113: Periodicidad
C114: Periodo
C115: Ejercicio
C116: Fecha de causación (dd-mm-aaaa)
C117: No. de operación
C118: Concepto
C119: Tipo de declaración
C120: No. de operación
C121: Monto del saldo a favor original
C122: Fecha en que se preentó la declaración del saldo a favor (dd-mm-aaaa)
C123: Remanente histórico antes de la aplicación
C124: Remanente actualizado antes de la aplicación
C125: (-) Estímulos al impuesto a cargo
C126: Total de aplicaciones
C128: Total de contribuciones
C129: (-) Total de aplicaciones
C130: (=) Cantidad a cargo

Sheet PP PLATA
B2: Pago provisional servicio de transporte terrestre de personas y entrega de bienes | I2: Ir al MENÚ
D4: Enero | E4: Febrero | F4: Marzo | G4: Abril | H4: Mayo | I4: Junio | J4: Julio | K4: Agosto | L4: Septiembre | M4: Octubre | N4: Noviembre | O4: Diciembre
C5: Ingresos obtenidos mediante intermediarios por servicios terrestres de pasajeros
B6: (+) | C6: Ingresos obtenidos mediante intermediarios por entrega de bienes
B7: (+) | C7: Ingresos obtenidos directamente del usuario por servicios terrestres de pasajeros
B8: (+) | C8: Ingresos obtenidos directamente del usuario por entrega de bienes
B9: (=) | C9: Ingresos totales del mes | D9: =IFERROR(SUM(D5:D8),0) -> 0 | E9: =IFERROR(SUM(E5:E8),0) -> 0 | F9: 0 | G9: 0 | H9: 0 | I9: 0 | J9: 0 | K9: 0 | L9: 0 | M9: 0 | N9: 0 | O9: 0
B10: (x) | C10: Tasa % | D10: 0.021 | E10: 0.021 | F10: 0.021 | G10: 0.021 | H10: 0.021 | I10: 0.021 | J10: 0.021 | K10: 0.021 | L10: 0.021 | M10: 0.021 | N10: 0.021 | O10: 0.021
B11: (=) | C11: ISR causado | D11: =IFERROR(ROUND(D9*D10,0),0) -> 0 | E11: =IFERROR(ROUND(E9*E10,0),0) -> 0 | F11: 0 | G11: 0 | H11: 0 | I11: 0 | J11: 0 | K11: 0 | L11: 0 | M11: 0 | N11: 0 | O11: 0
B12: (-) | C12: Retenciones por platafomras tecnológicas
B13: (=) | C13: ISR a cargo | D13: =IFERROR(IF(D11>=D12,ROUND(D11-D12,0),0),0) -> 0 | E13: =IFERROR(IF(E11>=E12,ROUND(E11-E12,0),0),0) -> 0 | F13: 0 | G13: 0 | H13: 0 | I13: 0 | J13: 0 | K13: 0 | L13: 0 | M13: 0 | N13: 0 | O13: 0
B16: Servicio de hospedaje
D17: Enero | E17: Febrero | F17: Marzo | G17: Abril | H17: Mayo | I17: Junio | J17: Julio | K17: Agosto | L17: Septiembre | M17: Octubre | N17: Noviembre | O17: Diciembre
C18: Ingresos obtenidos mediante intermediarios
B19: (+) | C19: Ingresos obtenidos directamente del usuario
B20: (=) | C20: Ingresos totales del mes | D20: =IFERROR(SUM(D18:D19),0) -> 0 | E20: =IFERROR(SUM(E18:E19),0) -> 0 | F20: 0 | G20: 0 | H20: 0 | I20: 0 | J20: 0 | K20: 0 | L20: 0 | M20: 0 | N20: 0 | O20: 0
B21: (x) | C21: Tasa % | D21: 0.04 | E21: 0.04 | F21: 0.04 | G21: 0.04 | H21: 0.04 | I21: 0.04 | J21: 0.04 | K21: 0.04 | L21: 0.04 | M21: 0.04 | N21: 0.04 | O21: 0.04
B22: (=) | C22: ISR causado | D22: =IFERROR(ROUND(D20*D21,0),0) -> 0 | E22: =IFERROR(ROUND(E20*E21,0),0) -> 0 | F22: 0 | G22: 0 | H22: 0 | I22: 0 | J22: 0 | K22: 0 | L22: 0 | M22: 0 | N22: 0 | O22: 0
B23: (-) | C23: Retenciones por platafomras tecnológicas
B24: (=) | C24: ISR a cargo | D24: =IFERROR(IF(D22>=D23,ROUND(D22-D23,0),0),0) -> 0
B27: Enajenación de bienes y/o prestación de servicios
D28: Enero | E28: Febrero | F28: Marzo | G28: Abril | H28: Mayo | I28: Junio | J28: Julio | K28: Agosto | L28: Septiembre | M28: Octubre | N28: Noviembre | O28: Diciembre
C29: Ingresos obtenidos mediante intermediarios por enajenación de bienes
B30: (+) | C30: Ingresos obtenidos mediante intermediarios por prestación de servicios
B31: (+) | C31: Ingresos obtenidos directamente del usuario por enajenación de bienes
B32: (+) | C32: Ingresos obtenidos directamente del usuario por prestación de servicios
B33: (=) | C33: Ingresos totales del mes | D33: =IFERROR(SUM(D29:D32),0) -> 0 | E33: =IFERROR(SUM(E29:E32),0) -> 0 | F33: 0 | G33: 0 | H33: 0 | I33: 0 | J33: 0 | K33: 0 | L33: 0 | M33: 0 | N33: 0 | O33: 0
B34: (x) | C34: Tasa % | D34: 0.01 | E34: 0.01 | F34: 0.01 | G34: 0.01 | H34: 0.01 | I34: 0.01 | J34: 0.01 | K34: 0.01 | L34: 0.01 | M34: 0.01 | N34: 0.01 | O34: 0.01
B35: (=) | C35: ISR causado | D35: =IFERROR(ROUND(D33*D34,0),0) -> 0 | E35: =IFERROR(ROUND(E33*E34,0),0) -> 0 | F35: 0 | G35: 0 | H35: 0 | I35: 0 | J35: 0 | K35: 0 | L35: 0 | M35: 0 | N35: 0 | O35: 0
B36: (-) | C36: Retenciones por platafomras tecnológicas
B37: (=) | C37: ISR a cargo | D37: =IFERROR(IF(D35>=D36,ROUND(D35-D36,0),0),0) -> 0 | E37: =IFERROR(IF(E35>=E36,ROUND(E35-E36,0),0),0) -> 0 | F37: 0 | G37: 0 | H37: 0 | I37: 0 | J37: 0 | K37: 0 | L37: 0 | M37: 0 | N37: 0 | O37: 0

Sheet IVA
B2: Determinación del pago mensual de IVA persona física actividad empresarial y profesional, arrendamiento de inmuebles | I2: Ir al MENÚ
C4: Año de cálculo | D4: 2025
C6: IVA A CARGO | D6: Enero | E6: Febrero | F6: Marzo | G6: Abril | H6: Mayo | I6: Junio | J6: Julio | K6: Agosto | L6: Septiembre | M6: Octubre | N6: Noviembre | O6: Diciembre
C7: Valor de los actos o actividades gravados a la tasa del 8% | D7: =IFERROR(D12,0) -> 0 | E7: =IFERROR(E12,0) -> 0 | F7: 0 | G7: 0 | H7: 0 | I7: 0 | J7: 0 | K7: 0 | L7: 0 | M7: 0 | N7: 0 | O7: 0
C8: CFDI emitidos de tipo ingreso con método de pago PUE règimen 612
C9: CFDI emitidos con complemento de pago règimen 612
C10: CFDI emitidos de tipo ingreso con método de pago PUE règimen 625
C11: CFDI emitidos con complemento de pago règimen 625
C12: Monto por detallar | D12: =IFERROR(ROUND(SUMIF(D8:D9,">0"),0),0) -> 0 | E12: =IFERROR(ROUND(SUMIF(E8:E9,">0"),0),0) -> 0 | F12: 0 | G12: 0 | H12: 0 | I12: 0 | J12: 0 | K12: 0 | L12: 0 | M12: 0 | N12: 0 | O12: 0
C13: Intereses cobrados a la tasa del 8%
C14: Regalías entre partes relacionadas a la tasa del 8%
C15: Otros actos o actividades gravados a la tasa del 8%
C17: Valor de los actos o actividades gravados a la tasa del 16% | D17: =IFERROR(D22,0) -> 0 | E17: =IFERROR(E22,0) -> 0 | F17: 0 | G17: 0 | H17: 0 | I17: 0 | J17: 0 | K17: 0 | L17: 0 | M17: 0 | N17: 0 | O17: 0
C18: CFDI emitidos de tipo ingreso con método de pago PUE règimen 612
C19: CFDI emitidos con complemento de pago règimen 612
C20: CFDI emitidos de tipo ingreso con método de pago PUE règimen 625
C21: CFDI emitidos con complemento de pago règimen 625
C22: Monto por detallar | D22: =IFERROR(ROUND(SUMIF(D18:D21,">0"),0),0) -> 0 | E22: =IFERROR(ROUND(SUMIF(E18:E21,">0"),0),0) -> 0 | F22: 0 | G22: 0 | H22: 0 | I22: 0 | J22: 0 | K22: 0 | L22: 0 | M22: 0 | N22: 0 | O22: 0
C23: Intereses cobrados a la tasa del 16%
C24: Regalías entre partes relacionadas a la tasa del 16%
C25: Otros actos o actividades gravados a la tasa del 16%
C27: Valor de los actos o actividades gravados a la tasa del 0% exportación
C29: Valor de los actos o actividades gravados a la tasa del 0% otros | D29: =SUM(D30:D31) -> 0 | E29: =SUM(E30:E31) -> 0 | F29: 0 | G29: 0 | H29: 0 | I29: 0 | J29: 0 | K29: 0 | L29: 0 | M29: 0 | N29: 0 | O29: 0
C30: CFDI emitidos de tipo ingreso con método de pago PUE règimen 612
C31: CFDI emitidos con complemento de pago règimen 612
C32: CFDI emitidos de tipo ingreso con método de pago PUE règimen 625
C33: CFDI emitidos con complemento de pago règimen 625
C34: Monto por detallar | D34: =IFERROR(ROUND(SUMIF(D30:D33,">0"),0),0) -> 0 | E34: =IFERROR(ROUND(SUMIF(E30:E33,">0"),0),0) -> 0 | F34: 0 | G34: 0 | H34: 0 | I34: 0 | J34: 0 | K34: 0 | L34: 0 | M34: 0 | N34: 0 | O34: 0
C35: Actividades agrícolas, ganaderas, silvícola o pesqueras a la tasa del 0%
C36: Otros actos o actividades gravados a la tasa del 0%
C38: Suma de los actos o actividades gravados | D38: =IFERROR(D7+D17+D27+D29,0) -> 0 | E38: =IFERROR(E7+E17+E27+E29,0) -> 0 | F38: 0 | G38: 0 | H38: 0 | I38: 0 | J38: 0 | K38: 0 | L38: 0 | M38: 0 | N38: 0 | O38: 0
C40: Valor de los actos o actividades por los que no se deba pagar el impuesto (exentos) | D40: =SUM(D41:D42) -> 0 | E40: =SUM(E41:E42) -> 0 | F40: 0 | G40: 0 | H40: 0 | I40: 0 | J40: 0 | K40: 0 | L40: 0 | M40: 0 | N40: 0 | O40: 0
C41: CFDI emitidos de tipo ingreso con método de pago PUE règimen 612
C42: CFDI emitidos con complemento de pago règimen 612
C43: CFDI emitidos de tipo ingreso con método de pago PUE règimen 625
C44: CFDI emitidos con complemento de pago règimen 625
C45: Monto por detallar | D45: =IFERROR(ROUND(SUMIF(D41:D44,">0"),0),0) -> 0 | E45: =IFERROR(ROUND(SUMIF(E41:E44,">0"),0),0) -> 0 | F45: 0 | G45: 0 | H45: 0 | I45: 0 | J45: 0 | K45: 0 | L45: 0 | M45: 0 | N45: 0 | O45: 0
C46: Enajenación de suelo y construcciones adheridas al suelo, destinadas o utilizadas para casa habitación
C47: Enajenación de libros, periódicos y revistas (no editados por el contribuyente)
C48: Regalías cobradas por autores
C49: Enajenación de bienes muebles usados, excepto los enajenados por empresas
C50: Enajenación de billetes y demás comprobantes de loterías, rifas, sorteos o juegos con apuestas y concursos de toda clase
C51: Servicios de enseñanza
C52: Servicio de transporte público terrestre de personas
C53: Operaciones financieras derivadas
C54: Venta de boletos para espectáculos públicos
C55: Servicios profesionales de medicina
C56: Uso o goce temporal de inmuebles para casa habitación y por fincas para fines agrícolas o ganaderos
C57: Otros ingresos exentos de IVA
C59: Valor de los actos o actividades no objeto del impuesto
C61: IVA a cargo a la tasa del 8% | D61: =IFERROR(ROUND(D7*0.08,2),0) -> 0 | E61: =IFERROR(ROUND(E7*0.08,2),0) -> 0 | F61: 0 | G61: 0 | H61: 0 | I61: 0 | J61: 0 | K61: 0 | L61: 0 | M61: 0 | N61: 0 | O61: 0
C62: IVA a cargo a la tasa del 16% | D62: =IFERROR(ROUND(D17*0.16,2),0) -> 0 | E62: =IFERROR(ROUND(E17*0.16,2),0) -> 0 | F62: 0 | G62: 0 | H62: 0 | I62: 0 | J62: 0 | K62: 0 | L62: 0 | M62: 0 | N62: 0 | O62: 0
C63: Cantidad actualizada a reintegrarse derivada del ajuste
C64: Total de IVA a cargo | D64: =IFERROR(D61+D62+D63,0) -> 0 | E64: =IFERROR(E61+E62+E63,0) -> 0 | F64: 0 | G64: 0 | H64: 0 | I64: 0 | J64: 0 | K64: 0 | L64: 0 | M64: 0 | N64: 0 | O64: 0
C66: IVA ACREDITABLE
C67: Monto de los actos o actividades pagadas
C68: Valor de los actos o actividades pagados a la tasa del 8% | D68: =IFERROR(ROUND(D70+D71+D73+D74,0),0) -> 0 | E68: 0 | F68: 0 | G68: 0 | H68: 0 | I68: 0 | J68: 0 | K68: 0 | L68: 0 | M68: 0 | N68: 0 | O68: 0
C69: CFDI recibidos con método de pago PUE bancarizados
C70: Con clave de uso G01 (Adquisición de mercancía)
C71: Con clave de uso G03 (Gastos en general)
C72: CFDI recibidos con complemento de pago
C73: Con clave de uso G01 (Adquisición de mercancía)
C74: Con clave de uso G03 (Gastos en general)
C75: Detalle del valor de los actos o catividades pagados a la tasa del 16%
C76: Monto a detallar | D76: =IFERROR(ROUND(D69+D71+D73+D74,0),0) -> 0 | E76: 0 | F76: 0 | G76: 0 | H76: 0 | I76: 0 | J76: 0 | K76: 0 | L76: 0 | M76: 0 | N76: 0 | O76: 0
C77: Intereses pagados a la tasa del 8%
C78: Regalias pagadas entre partes relacionadas a la tasa del 8%
C79: Otros actos o actividades pagados a la tasa del 8%
C80: Valor de los actos o actividades pagados a la tasa del 16% | D80: =IFERROR(ROUND(D82+D83+D85+D86,0),0) -> 0 | E80: 0 | F80: 0 | G80: 0 | H80: 0 | I80: 0 | J80: 0 | K80: 0 | L80: 0 | M80: 0 | N80: 0 | O80: 0
C81: CFDI recibidos con método de pago PUE bancarizados
C82: Con clave de uso G01 (Adquisición de mercancía)
C83: Con clave de uso G03 (Gastos en general)
C84: CFDI recibidos con complemento de pago
C85: Con clave de uso G01 (Adquisición de mercancía)
C86: Con clave de uso G03 (Gastos en general)
C87: Detalle del valor de los actos o catividades pagados a la tasa del 16%
C88: Monto a detallar | D88: =IFERROR(ROUND(D81+D83+D85+D86,0),0) -> 0 | E88: 0 | F88: 0 | G88: 0 | H88: 0 | I88: 0 | J88: 0 | K88: 0 | L88: 0 | M88: 0 | N88: 0 | O88: 0
C89: Intereses pagados a la tasa del 8%
C90: Regalias pagadas entre partes relacionadas a la tasa del 8%
C91: Otros actos o actividades pagados a la tasa del 8%
C92: Valor de los actos o actividades pagados en la importación de bienes y servicios a la tasa del 16% de IVA
C93: Monto por detallar | D93: =D92 -> 0 | E93: =E92 -> 0 | F93: 0 | G93: 0 | H93: 0 | I93: 0 | J93: 0 | K93: 0 | L93: 0 | M93: 0 | N93: 0 | O93: 0
C94: Importación de bienes intangibles a la tasa del 16%
C95: Importación de uso o goce temporal de bienes intangibles a la tasa del 16%
C96: Importación de servicios a la tasa del 16%
C97: Otros actos o actividades pagados en la importación de bienes y servicios a la tasa del 16%
C98: Valor de los demás actos o actividades pagados a la tasa del 0% de IVA
C99: Valor de los actos o actividades pagados por los que no se pagará el IVA (exentos)
C100: Monto por detallar | D100: =SUM(D101:D110) -> 0 | E100: =SUM(E101:E110) -> 0 | F100: 0 | G100: 0 | H100: 0 | I100: 0 | J100: 0 | K100: 0 | L100: 0 | M100: 0 | N100: 0 | O100: 0
C101: Adquisición de suelo y construcciones adheridas al suelo, destinadas o utilizadas para casa habitación
C102: Adquisición de libros, periódicos o revistas (No editados por el contribuyente)
C103: Regalías pagadas a los autores
C104: Adquisición de bienes muebles usados excepto los adquiridos de empresas
C105: Servicio de transporte público terrestre de personas
C106: Servicios profesionales de medicina
C107: Aseguramiento contra riesgos agropecuarios
C108: Uso o goce temporal de fincas para fines agrícolas o ganaderos
C109: Actos o actividades pagados en la importación de bienes y servicios exentos
C110: Otros actos o actividades pagados exentos
C112: Determinación del Impuesto al Valor Agregado acreditable
C113: IVA de actos o actividades pagados a la tasa del 8% | D113: =IFERROR(ROUND(D68*0.08,0),0) -> 0 | E113: 0 | F113: 0 | G113: 0 | H113: 0 | I113: 0 | J113: 0 | K113: 0 | L113: 0 | M113: 0 | N113: 0 | O113: 0
C114: IVA de actos o actividades pagados a la tasa del 16% | D114: =IFERROR(ROUND(D80*0.16,0),0) -> 0 | E114: 0 | F114: 0 | G114: 0 | H114: 0 | I114: 0 | J114: 0 | K114: 0 | L114: 0 | M114: 0 | N114: 0 | O114: 0
C115: IVA de actos o actividades pagados en la importación de bienes y servicios a la tasa del 16% | D115: =IFERROR(ROUND(D98*0.16,0),0) -> 0 | E115: =IFERROR(ROUND(E98*0.16,0),0) -> 0 | F115: 0 | G115: 0 | H115: 0 | I115: 0 | J115: 0 | K115: 0 | L115: 0 | M115: 0 | N115: 0 | O115: 0
C116: IVA trasladado al contribuyente (efectivamente pagado) | D116: =SUM(D113:D115) -> 0 | E116: =SUM(E113:E115) -> 0 | F116: 0 | G116: 0 | H116: 0 | I116: 0 | J116: 0 | K116: 0 | L116: 0 | M116: 0 | N116: 0 | O116: 0
C117: Total de IVA acreditable por actividades gravadas a la tasa del 16%, 8% y 0%
C118: Total de iva trasladado al contribuyente (efectivamente pagado) | D118: =D116 -> 0 | E118: =E116 -> 0 | F118: 0 | G118: 0 | H118: 0 | I118: 0 | J118: 0 | K118: 0 | L118: 0 | M118: 0 | N118: 0 | O118: 0
C119: Total de IVA acreditable por importación para realizar actos o actividades por los que no están obligados al pago del impuesto
C120: IVA correspondiente a actos o actividades por los que no se está obligado al pago del impuesto
C121: IVA pagado utilizado indistintamente para realizar actos o actividades gravados y actos o actividades por los que no se está obligado al pago del impuesto | D121: =IFERROR(D118-D120,0) -> 0 | E121: =IFERROR(E118-E120,0) -> 0 | F121: 0 | G121: 0 | H121: 0 | I121: 0 | J121: 0 | K121: 0 | L121: 0 | M121: 0 | N121: 0 | O121: 0
C122: Selecciona la proporción de IVA que aplicarás
C123: Proporción de IVA
C124: IVA acreditable de bienes utilizados indistintamente para realizar actos o actividades gravados y actos o actividades por los que no se está obligado al pago del impuesto | D124: =IFERROR(ROUND(D121*D123,0),0) -> 0 | E124: =IFERROR(ROUND(E121*E123,0),0) -> 0 | F124: 0 | G124: 0 | H124: 0 | I124: 0 | J124: 0 | K124: 0 | L124: 0 | M124: 0 | N124: 0 | O124: 0
C125: IVA acreditable | D125: =D124 -> 0 | E125: =E124 -> 0 | F125: 0 | G125: 0 | H125: 0 | I125: 0 | J125: 0 | K125: 0 | L125: 0 | M125: 0 | N125: 0 | O125: 0
C126: Monto acreditable actualizado a incrementar derivado del ajuste
C127: Total de IVA acreditable | D127: =SUM(D125:D126) -> 0 | E127: =SUM(E125:E126) -> 0 | F127: 0 | G127: 0 | H127: 0 | I127: 0 | J127: 0 | K127: 0 | L127: 0 | M127: 0 | N127: 0 | O127: 0
C129: DETERMINACIÓN
C130: Total de IVA a cargo | D130: =IFERROR(ROUND(D64,0),0) -> 0 | E130: 0 | F130: 0 | G130: 0 | H130: 0 | I130: 0 | J130: 0 | K130: 0 | L130: 0 | M130: 0 | N130: 0 | O130: 0
C131: (-) IVA retenido
C132: Monto por detallar | D132: =D131 -> 0 | E132: =E131 -> 0 | F132: 0 | G132: 0 | H132: 0 | I132: 0 | J132: 0 | K132: 0 | L132: 0 | M132: 0 | N132: 0 | O132: 0
C133: Por enajenación de bienes
C134: Por otras operaciones
C135: Total de IVA acreditable | D135: =IFERROR(ROUND(D127,0),0) -> 0 | E135: =IFERROR(ROUND(E127,0),0) -> 0 | F135: 0 | G135: 0 | H135: 0 | I135: 0 | J135: 0 | K135: 0 | L135: 0 | M135: 0 | N135: 0 | O135: 0
C136: Otras cantidades a cargo del contribuyente
C137: Otras cantidades a favor del contribuyente
C138: Cantidad a cargo | D138: =IFERROR(IF((D130+D136)>=(D135+D137),ROUND(D130+D136-D135-D137,0),""),"") -> 0 | E138: =IFERROR(IF((E130+E136)>=(E135+E137),ROUND(E130+E136-E135-E137,0),""),"") -> 0 | F138: 0 | G138: 0 | H138: 0 | I138: 0 | J138: 0 | K138: 0 | L138: 0 | M138: 0 | N138: 0 | O138: 0
C139: Acreditamiento del saldo a favor de periodos anteriores (Sin exceder de la cantidad a cargo)
C140: Impuesto a cargo | D140: =IFERROR(IF((D130+D136)>=(D135+D137+D139),ROUND(D130+D136-D135-D137-D139,0),""),"") -> 0 | E140: =IFERROR(IF((E130+E136)>=(E135+E137+E139),ROUND(E130+E136-E135-E137-E139,0),""),"") -> 0 | F140: 0 | G140: 0 | H140: 0 | I140: 0 | J140: 0 | K140: 0 | L140: 0 | M140: 0 | N140: 0 | O140: 0
C141: Saldo a favor | D141: =IFERROR(IF((D135+D137)>(D130+D136),ROUND(D135+D137-D130-D136,0),""),"") ->  | E141: =IFERROR(IF((E135+E137)>(E130+E136),ROUND(E135+E137-E130-E136,0),""),"") -> 
C142: Devolución inmediata obtenida
C143: Impuesto a favor | D143: =IFERROR(ROUND(D141-D142,0),"") ->  | E143: =IFERROR(ROUND(E141-E142,0),"") -> 
C145: PAGO
C146: A cargo | D146: =D140 -> 0 | E146: =E140 -> 0 | F146: 0 | G146: 0 | H146: 0 | I146: 0 | J146: 0 | K146: 0 | L146: 0 | M146: 0 | N146: 0 | O146: 0
C147: (-) Subsidio para el empleo
C148: (-) Compensaciones
C149: (-) Estímulos al impuesto a cargo | D149: =SUM(D150:D155) -> 0 | E149: =SUM(E150:E155) -> 0 | F149: 0 | G149: 0 | H149: 0 | I149: 0 | J149: 0 | K149: 0 | L149: 0 | M149: 0 | N149: 0 | O149: 0
C150: Estímulo a gasolinas en zona fronteriza
C151: Estímulo a gasolinas en regiones cercanas a zona fronteriza
C152: Estímulo complementario combustibles
C153: Estímulo fiscal por la importación o enajenación de jugos, néctares, concentrados de frutas o de verduras y de productos para beber
C154: Estímulo fiscal por la prestación de servicios de hotelería y conexos a turistas extranjeros
C155: Estímulo fiscal por el uso temporal de centros de convenciones y de exposiciones a residentes en el extranjero
C156: Total de aplicaciones | D156: =IFERROR(ROUND(D147+D148+D149,0),0) -> 0 | E156: =IFERROR(ROUND(E147+E148+E149,0),0) -> 0 | F156: 0 | G156: 0 | H156: 0 | I156: 0 | J156: 0 | K156: 0 | L156: 0 | M156: 0 | N156: 0 | O156: 0
C158: Total de contribuciones | D158: =D146 -> 0 | E158: =E146 -> 0 | F158: 0 | G158: 0 | H158: 0 | I158: 0 | J158: 0 | K158: 0 | L158: 0 | M158: 0 | N158: 0 | O158: 0
C159: (-) Total de aplicaciones | D159: =D156 -> 0 | E159: =E156 -> 0 | F159: 0 | G159: 0 | H159: 0 | I159: 0 | J159: 0 | K159: 0 | L159: 0 | M159: 0 | N159: 0 | O159: 0
C160: (=) Cantidad a cargo | D160: =IFERROR(IF(D158>=D159,D158-D159,0),0) -> 0 | E160: =IFERROR(IF(E158>=E159,E158-E159,0),0) -> 0 | F160: 0 | G160: 0 | H160: 0 | I160: 0 | J160: 0 | K160: 0 | L160: 0 | M160: 0 | N160: 0 | O160: 0
C162: Impuesto a favor | D162: =D143 ->  | E162: =E143 -> 

Sheet IVAP
G2: Ir al MENÚ
B3: Determinación del pago mensual de IVA plataformas tecnológicas
C5: Enero | D5: Febrero | E5: Marzo | F5: Abril | G5: Mayo | H5: Junio | I5: Julio | J5: Agosto | K5: Septiembre | L5: Octubre | M5: Noviembre | N5: Diciembre
B6: Ingreos obtenidos mediante intermediarios
B7: (+) Ingresos obtenidos directamente del usuario
B8: (=) Ingresos totales del mes | C8: =SUM(C6:C7) -> 0 | D8: =SUM(D6:D7) -> 0 | E8: 0 | F8: 0 | G8: 0 | H8: 0 | I8: 0 | J8: 0 | K8: 0 | L8: 0 | M8: 0 | N8: 0
B9: (x) Tasa % | C9: 0.16 | D9: 0.16 | E9: 0.16 | F9: 0.16 | G9: 0.16 | H9: 0.16 | I9: 0.16 | J9: 0.16 | K9: 0.16 | L9: 0.16 | M9: 0.16 | N9: 0.16
B10: (=) IVA a cargo a la tasa del 16% | C10: =IFERROR(ROUND(C8*C9,0),0) -> 0 | D10: =IFERROR(ROUND(D8*D9,0),0) -> 0 | E10: 0 | F10: 0 | G10: 0 | H10: 0 | I10: 0 | J10: 0 | K10: 0 | L10: 0 | M10: 0 | N10: 0
B11: (-) IVA acreditable
B12: (-) IVA retenido
B13: (=) Cantidad a cargo | C13: =IFERROR(IF(C10>=(C11+C12),ROUND(C10-C11-C12,0),""),"") -> 0 | D13: =IFERROR(IF(D10>=(D11+D12),ROUND(D10-D11-D12,0),""),"") -> 0 | E13: 0 | F13: 0 | G13: 0 | H13: 0 | I13: 0 | J13: 0 | K13: 0 | L13: 0 | M13: 0 | N13: 0
B14: (-) Acreditamiento de saldo a favor de periodos anteriores (sin exceder de cantidad a cargo)
B15: (=) Impuesto a cargo | C15: =IFERROR(IF(C13>=C14,C13-C14,""),"") -> 0 | D15: =IFERROR(IF(D13>=D14,D13-D14,""),"") -> 0 | E15: 0 | F15: 0 | G15: 0 | H15: 0 | I15: 0 | J15: 0 | K15: 0 | L15: 0 | M15: 0 | N15: 0
B17: (=) Impuesto a favor | C17: =IFERROR(IF((C11+C12)>C10,C11+C12-C10,""),"") ->  | D17: =IFERROR(IF((D11+D12)>D10,D11+D12-D10,""),"") -> 
B21: Determinación del pago mensual de IVA (pago definitivo)
B23: Servicio de transporte terrestre de personas y entrega de bienes | C23: Enero | D23: Febrero | E23: Marzo | F23: Abril | G23: Mayo | H23: Junio | I23: Julio | J23: Agosto | K23: Septiembre | L23: Octubre | M23: Noviembre | N23: Diciembre
B24: Ingresos obtenidos directamente del usuario por servicios terrestres de pasajeros
B25: (+) Ingresos obtenidos directamente del usuario por entrega de bienes
B26: (=) Ingresos totales del mes | C26: =SUM(C24:C25) -> 0 | D26: =SUM(D24:D25) -> 0 | E26: 0 | F26: 0 | G26: 0 | H26: 0 | I26: 0 | J26: 0 | K26: 0 | L26: 0 | M26: 0 | N26: 0
B27: (x) Tasa % | C27: 0.08 | D27: 0.08 | E27: 0.08 | F27: 0.08 | G27: 0.08 | H27: 0.08 | I27: 0.08 | J27: 0.08 | K27: 0.08 | L27: 0.08 | M27: 0.08 | N27: 0.08
B28: (=) IVA a cargo | C28: =IFERROR(ROUND(C26*C27,0),0) -> 0 | D28: =IFERROR(ROUND(D26*D27,0),0) -> 0 | E28: 0 | F28: 0 | G28: 0 | H28: 0 | I28: 0 | J28: 0 | K28: 0 | L28: 0 | M28: 0 | N28: 0
B31: Servicio de hospedaje | C31: Enero | D31: Febrero | E31: Marzo | F31: Abril | G31: Mayo | H31: Junio | I31: Julio | J31: Agosto | K31: Septiembre | L31: Octubre | M31: Noviembre | N31: Diciembre
B32: Ingresos obtenidos directamente del usuario
B33: (=) Ingresos totales del mes | C33: =SUM(C32) -> 0 | D33: =SUM(D32) -> 0 | E33: 0 | F33: 0 | G33: 0 | H33: 0 | I33: 0 | J33: 0 | K33: 0 | L33: 0 | M33: 0 | N33: 0
B34: (x) Tasa % | C34: 0.08 | D34: 0.08 | E34: 0.08 | F34: 0.08 | G34: 0.08 | H34: 0.08 | I34: 0.08 | J34: 0.08 | K34: 0.08 | L34: 0.08 | M34: 0.08 | N34: 0.08
B35: (=) IVA a cargo | C35: =IFERROR(ROUND(C33*C34,0),0) -> 0 | D35: =IFERROR(ROUND(D33*D34,0),0) -> 0 | E35: 0 | F35: 0 | G35: 0 | H35: 0 | I35: 0 | J35: 0 | K35: 0 | L35: 0 | M35: 0 | N35: 0
B39: Enajenación de bienes y/o prestación de servicios | C39: Enero | D39: Febrero | E39: Marzo | F39: Abril | G39: Mayo | H39: Junio | I39: Julio | J39: Agosto | K39: Septiembre | L39: Octubre | M39: Noviembre | N39: Diciembre
B40: Ingresos obtenidos directamente del usuario por enajenación de bienes
B41: (+) Ingresos obtenidos directamente del usuario por prestación de servicios
B42: (=) Ingresos totales del mes | C42: =SUM(C41) -> 0 | D42: =SUM(D41) -> 0 | E42: 0 | F42: 0 | G42: 0 | H42: 0 | I42: 0 | J42: 0 | K42: 0 | L42: 0 | M42: 0 | N42: 0
B43: (x) Tasa % | C43: 0.08 | D43: 0.08 | E43: 0.08 | F43: 0.08 | G43: 0.08 | H43: 0.08 | I43: 0.08 | J43: 0.08 | K43: 0.08 | L43: 0.08 | M43: 0.08 | N43: 0.08
B44: (=) IVA a cargo | C44: =IFERROR(ROUND(C42*C43,0),0) -> 0 | D44: =IFERROR(ROUND(D42*D43,0),0) -> 0 | E44: 0 | F44: 0 | G44: 0 | H44: 0 | I44: 0 | J44: 0 | K44: 0 | L44: 0 | M44: 0 | N44: 0

Sheet GENERALES1 (hidden)
B3: Ir al MENÚ
B5: Tabla de vacaciones para trabajadores de no buques (art. 76 LFT) | G5: Categoría | H5: Herramienta de trabajo | I5: Factor máximo de exclusión por uso de plataforma digital | J5: Aplicable de julio a septiembre 2025
B6: Años | G6: A | H6: Vehículos motorizados de cuatro o más ruedas de combustión interna, eléctricos o análogos. | I6: 0.36 | J6: 0.6
B7: Mínimo | C7: Máximo | D7: Días | G7: B | H7: Vehículos motorizados de dos ruedas de combustión interna, eléctricos o análogos. | I7: 0.3 | J7: 0.5
B8: 0 | C8: 1 | D8: 12 | G8: C | H8: Transportes no motorizados o sin medio de transporte. | I8: 0.12 | J8: 0.15
B9: =C8+0.01 -> 1.01 | C9: 2 | D9: =D8+2 -> 14
B10: =C9+0.01 -> 2.01 | C10: 3 | D10: =D9+2 -> 16
B11: 3.01 | C11: 4 | D11: 18
B12: 4.01 | C12: 5 | D12: 20
B13: 5.01 | C13: =C12+5 -> 10 | D13: 22
B14: 10.01 | C14: =C13+5 -> 15 | D14: 24
B15: 15.01 | C15: 20 | D15: 26
B16: 20.01 | C16: 25 | D16: 28
B17: 25.01 | C17: 30 | D17: 30
B18: 30.01 | C18: 35 | D18: 32
B20: Salario mínimo
B21: Zona Libre de la Frontera Norte | C21: 419.88
B22: Zona del Salario Mínimo General | C22: 278.8
B24: Valor de la UMA
B25: Enero | C25: 108.57
B26: Febrero en adelante | C26: 113.14
B28: Valor de la UMA mensual enero | C28: 3300.53
B29: Valor de la UMA mensual posterior | C29: 3439.46
B30: Total base ISR para subsidio | C30: 10171
B31: % del subsidio al empleo | C31: 0.138
B32: % Subsidio al empleo Enero | C32: 0.1439

Sheet FUNDAMENTO
D2: Ir al MENÚ
B5: Concepto | C5: Disposición | D5: Fundamento
B6: Cuota obrera | C6: Corresponde al patrón pagar íntegramente la cuota señalada para los trabajadores, en los casos en que éstos perciban como cuota diaria el salario mínimo. | D6: Artículo 36 LSS
B7: Aportación INFONAVIT | C7: Toda empresa agrícola, industrial, minera o de cualquier otra clase de trabajo, está obligada a proporcionar a los trabajadores habitaciones cómodas e higiénicas. Para dar cumplimiento a esta obligación, las empresas deberán aportar al Fondo Nacional de la Vivienda el cinco por ciento sobre los salarios de los trabajadores a su servicio. | D7: Artículo 136 LINFONAVIT
B8: Acuerdo IMSS D.O.F. 07/07/2023
B38: Concepto | C38: Disposición | D38: Fundamento
B39: Tiempo extra simple | C39: En los casos de siniestro o riesgo inminente en que peligre la vida del trabajador, de sus compañeros o del patrón, o la existencia misma de la empresa, la jornada de trabajo podrá prolongarse por el tiempo estrictamente indispensable para evitar esos males. | D39: Artículo 65 LFT
B40: Tiempo extra | C40: Podrá también prolongarse la jornada de trabajo por circunstancias extraordinarias, sin exceder nunca de tres horas diarias ni de tres veces en una semana. | D40: Artículo 66 LFT
B41: Riesgo de trabajo | C41: Riesgos de trabajo son los accidentes y enfermedades a que están expuestos los trabajadores en ejercicio o con motivo del trabajo. | D41: Artículo 41 LSS
B42: Seguro de riesgos de trabajo | C42: Al inscribirse por primera vez en el Instituto o al cambiar de actividad, las empresas cubrirán la prima media de la clase que conforme al Reglamento les corresponda, de acuerdo a la tabla siguiente: | D42: Artículo 74 LSS
C43: Las cuotas del Seguro de Riesgos de Trabajo que deban pagar los patrones y demás sujetos obligados, al registrarse por primera vez ante el Instituto o al cambiar de actividad, por disposición de la Ley, de este Reglamento o por sentencia definitiva, serán las que resulten de aplicar la prima media de la clase que corresponda, determinadas por el propio patrón y validadas por el Instituto, al salario base de cotización en los términos de la Ley y de este Reglamento. | D43: Artículo 24 RMACERF
B44: Enfermedad y maternidad prestaciones en especie | C44: Las prestaciones en especie del seguro de enfermedades y maternidad, se financiarán en la forma siguiente: I. Por cada asegurado se pagará mensualmente una cuota diaria patronal equivalente al trece punto nueve por ciento de un salario mínimo general diario para el Distrito Federal; II. Para los asegurados cuyo salario base de cotización sea mayor a tres veces el salario mínimo general diario para el Distrito Federal; se cubrirá además de la cuota establecida en la fracción anterior, una cuota adicional patronal equivalente al seis por ciento y otra adicional obrera del dos por ciento, de la cantidad que resulte de la diferencia entre el salario base de cotización y tres veces el salario mínimo citado, y III. El Gobierno Federal cubrirá mensualmente una cuota diaria por cada asegurado, equivalente a trece punto nueve por ciento de un salario mínimo general para el Distrito Federal, a la fecha de entrada en vigor de esta Ley, la cantidad inicial que resulte se actualizará trimestralmente de acuerdo a la variación del Indice Nacional de Precios al Consumidor. | D44: Artículo 106 LSS
B45: Enfermedad y maternidad prestaciones en dinero | C45: Las prestaciones en dinero del seguro de enfermedades y maternidad se financiarán con una cuota del uno por ciento sobre el salario base de cotización, que se pagará de la forma siguiente: I. A los patrones les corresponderá pagar el setenta por ciento de dicha cuota; II. A los trabajadores les corresponderá pagar el veinticinco por ciento de la misma, y III. Al Gobierno Federal le corresponderá pagar el cinco por ciento restante. | D45: Artículo 107 LSS
B46: Enfermedad y maternidad gastos médicos para pensionados y beneficiarios | C46: En los casos previstos por el artículo 23, el Estado aportará la contribución que le corresponda en términos de esta Ley, independientemente de la que resulte a cargo del patrón por la valuación actuarial de su contrato, pagando éste, tanto su propia cuota como la parte de la cuota obrera que le corresponda conforme a dicha valuación. Para cubrir las prestaciones en especie del seguro de enfermedades y maternidad de los pensionados y sus beneficiarios, en los seguros de riesgos de trabajo, invalidez y vida, así como retiro, cesantía en edad avanzada y vejez, los patrones, los trabajadores y el Estado aportarán una cuota de uno punto cinco por ciento sobre el salario base de cotización. De dicha cuota corresponderá al patrón pagar el uno punto cero cinco por ciento, a los trabajadores el cero punto trescientos setenta y cinco por ciento y al Estado el cero punto cero setenta y cinco por ciento. | D46: Artículo 25 LSS
B47: Invalidez y vida | C47: A los patrones y a los trabajadores les corresponde cubrir, para el seguro de invalidez y vida el uno punto setenta y cinco por ciento y el cero punto seiscientos veinticinco por ciento sobre el salario base de cotización, respectivamente. | D47: Artículo 147 LSS
B48: Retiro, cesantia en edad avanzada y vejez | C48: Artículo 168 LSS. Las cuotas y aportaciones a que se refiere el artículo anterior serán: I. En el ramo de retiro, a los patrones les corresponde cubrir el importe equivalente al dos por ciento del salario base de cotización del trabajador. II. En los ramos de cesantía en edad avanzada y vejez, a los patrones y a los trabajadores les corresponde cubrir las cuotas del tres punto ciento cincuenta por ciento y uno punto ciento veinticinco por ciento sobre el salario base de cotización, respectivamente. III. En los ramos de cesantía en edad avanzada y vejez la contribución del Estado será igual al siete punto ciento cuarenta y tres por ciento del total de las cuotas patronales de estos ramos, y IV. Una cantidad por cada día de salario cotizado, que aporte mensualmente el Gobierno Federal por concepto de cuota social para los trabajadores que ganen hasta quince veces el salario mínimo general vigente en el Distrito Federal, que se depositará en la cuenta individual de cada trabajador asegurado conforme a la tabla siguiente: | D48: Artículo 168 LSS
B49: Guarderia | C49: El monto de la prima para este seguro será del uno por ciento sobre el salario base de cotización. Para prestaciones sociales solamente se podrá destinar hasta el veinte por ciento de dicho monto. | D49: Artículo 211 LSS
B51: Acuerdo IMSS D.O.F. 11/07/2024
B98: Artículo 153-E LFT. En las empresas que tengan más de 50 trabajadores se constituirán Comisiones Mixtas de Capacitación, Adiestramiento y Productividad, integradas por igual número de representantes de los trabajadores y de los patrones, y serán las encargadas de: I. Vigilar, instrumentar, operar y mejorar los sistemas y los programas de capacitación y adiestramiento; II. Proponer los cambios necesarios en la maquinaria, los equipos, la organización del trabajo y las relaciones laborales, de conformidad con las mejores prácticas tecnológicas y organizativas que incrementen la productividad en función de su grado de desarrollo actual; III. Proponer las medidas acordadas por el Comité Nacional y los Comités Estatales de Productividad a que se refieren los artículos 153-K y 153-Q, con el propósito de impulsar la capacitación, medir y elevar la productividad, así como garantizar el reparto equitativo de sus beneficios; IV. Vigilar el cumplimiento de los acuerdos de productividad; y V. Resolver las objeciones que, en su caso, presenten los trabajadores con motivo de la distribución de los beneficios de la productividad. Para el caso de las micro y pequeñas empresas, que son aquellas que cuentan con hasta 50 trabajadores, la Secretaría del Trabajo y Previsión Social y la Secretaría de Economía estarán obligadas a incentivar su productividad mediante la dotación de los programas a que se refiere el artículo 153-J, así como la capacitación relacionada con los mismos. Para tal efecto, con el apoyo de las instituciones académicas relacionadas con los temas de los programas referidos, convocarán en razón de su rama, sector, entidad federativa o región a los micro y pequeños empresarios, a los trabajadores y sindicatos que laboran en dichas empresas.
B99: Artículo 39-F LFT. Las relaciones de trabajo por tiempo indeterminado serán continuas por regla general, pero podrán pactarse para labores discontinuas cuando los servicios requeridos sean para labores fijas y periódicas de carácter discontinuo, en los casos de actividades de temporada o que no exijan la prestación de servicios toda la semana, el mes o el año. Los trabajadores que presten servicios bajo esta modalidad tienen los mismos derechos y obligaciones que los trabajadores por tiempo indeterminado, en proporción al tiempo trabajado en cada periodo.

Sheet GENERAL (hidden)
B4: Enero | C4: =IFERROR(DAY(EOMONTH(DATE(#REF!,ROW($A1),1),0)),"") -> 
B5: Febrero | C5: =IFERROR(DAY(EOMONTH(DATE(#REF!,ROW($A2),1),0)),"") -> 
B6: Marzo | C6: =IFERROR(DAY(EOMONTH(DATE(#REF!,ROW($A3),1),0)),"") -> 
B7: Abril | C7: =IFERROR(DAY(EOMONTH(DATE(#REF!,ROW($A4),1),0)),"") -> 
B8: Mayo | C8: =IFERROR(DAY(EOMONTH(DATE(#REF!,ROW($A5),1),0)),"") -> 
B9: Junio | C9: =IFERROR(DAY(EOMONTH(DATE(#REF!,ROW($A6),1),0)),"") -> 
B10: Julio | C10: =IFERROR(DAY(EOMONTH(DATE(#REF!,ROW($A7),1),0)),"") -> 
B11: Agosto | C11: =IFERROR(DAY(EOMONTH(DATE(#REF!,ROW($A8),1),0)),"") -> 
B12: Septiembre | C12: =IFERROR(DAY(EOMONTH(DATE(#REF!,ROW($A9),1),0)),"") -> 
B13: Octubre | C13: =IFERROR(DAY(EOMONTH(DATE(#REF!,ROW($A10),1),0)),"") -> 
B14: Noviembre | C14: =IFERROR(DAY(EOMONTH(DATE(#REF!,ROW($A11),1),0)),"") -> 
B15: Diciembre | C15: =IFERROR(DAY(EOMONTH(DATE(#REF!,ROW($A12),1),0)),"") -> 
B18: Enero - Febrero | C18: =IFERROR(C4+C5,"") -> 
B19: Marzo - Abril | C19: =IFERROR(C6+C7,"") -> 
B20: Mayo - Junio | C20: =IFERROR(C8+C9,"") -> 
B21: Julio - Agosto | C21: =IFERROR(C10+C11,"") -> 
B22: Septiembre - Octubre | C22: =IFERROR(C12+C13,"") -> 
B23: Noviembre - Diciembre | C23: =IFERROR(C14+C15,"") -> 
B28: Cesantía en edad avanzada y vejez
B29: Valor mímino | C29: Valor máximo | D29: % a aplicar
B30: =IFERROR(SBCP!$D$21,"") ->  | C30: =IFERROR(#REF!,"") ->  | D30: =IFERROR(VLOOKUP(B30,$B$40:$J$48,VLOOKUP(#REF!,GENERAL!$B$51:$C$58,2,FALSE),FALSE),"") -> 
B31: =IFERROR(ROUND(#REF!*1.01,2),"") ->  | C31: =IFERROR(ROUND(#REF!*1.5,2),"") ->  | D31: =IFERROR(VLOOKUP(B31,$B$40:$J$48,VLOOKUP(#REF!,GENERAL!$B$51:$C$58,2,FALSE),FALSE),"") -> 
B32: =IFERROR(ROUND(#REF!*1.51,2),"") ->  | C32: =IFERROR(ROUND(#REF!*2,2),"") ->  | D32: =IFERROR(VLOOKUP(B32,$B$40:$J$48,VLOOKUP(#REF!,GENERAL!$B$51:$C$58,2,FALSE),FALSE),"") -> 
B33: =IFERROR(ROUND(#REF!*2.01,2),"") ->  | C33: =IFERROR(ROUND(#REF!*2.5,2),"") ->  | D33: =IFERROR(VLOOKUP(B33,$B$40:$J$48,VLOOKUP(#REF!,GENERAL!$B$51:$C$58,2,FALSE),FALSE),"") -> 
B34: =IFERROR(ROUND(#REF!*2.51,2),"") ->  | C34: =IFERROR(ROUND(#REF!*3,2),"") ->  | D34: =IFERROR(VLOOKUP(B34,$B$40:$J$48,VLOOKUP(#REF!,GENERAL!$B$51:$C$58,2,FALSE),FALSE),"") -> 
B35: =IFERROR(ROUND(#REF!*3.01,2),"") ->  | C35: =IFERROR(ROUND(#REF!*3.5,2),"") ->  | D35: =IFERROR(VLOOKUP(B35,$B$40:$J$48,VLOOKUP(#REF!,GENERAL!$B$51:$C$58,2,FALSE),FALSE),"") -> 
B36: =IFERROR(ROUND(#REF!*3.51,2),"") ->  | C36: =IFERROR(ROUND(#REF!*4,2),"") ->  | D36: =IFERROR(VLOOKUP(B36,$B$40:$J$48,VLOOKUP(#REF!,GENERAL!$B$51:$C$58,2,FALSE),FALSE),"") -> 
B37: =IFERROR(ROUND(#REF!*4.01,2),"") ->  | C37: 99999999 | D37: =IFERROR(VLOOKUP(B37,$B$40:$J$48,VLOOKUP(#REF!,GENERAL!$B$51:$C$58,2,FALSE),FALSE),"") -> 
C39: % a aplicar
B40: Valor mímino | C40: 2023 | D40: 2024 | E40: 2025 | F40: 2026 | G40: 2027 | H40: 2028 | I40: 2029 | J40: 2030
B41: =IFERROR(#REF!,"") ->  | C41: 0.0315 | D41: 0.0315 | E41: 0.0315 | F41: 0.0315 | G41: 0.0315 | H41: 0.0315 | I41: 0.0315 | J41: 0.0315
B42: =IFERROR(ROUND(#REF!*1.01,2),"") ->  | C42: 0.03281 | D42: 0.03413 | E42: 0.03544 | F42: 0.03676 | G42: 0.03807 | H42: 0.03939 | I42: 0.0407 | J42: 0.04202
B43: =IFERROR(ROUND(#REF!*1.51,2),"") ->  | C43: 0.03575 | D43: 0.04 | E43: 0.04426 | F43: 0.04851 | G43: 0.05276 | H43: 0.05701 | I43: 0.06126 | J43: 0.06552
B44: =IFERROR(ROUND(#REF!*2.01,2),"") ->  | C44: 0.03751 | D44: 0.04353 | E44: 0.04954 | F44: 0.05556 | G44: 0.06157 | H44: 0.06759 | I44: 0.0736 | J44: 0.07962
B45: =IFERROR(ROUND(#REF!*2.51,2),"") ->  | C45: 0.03869 | D45: 0.04588 | E45: 0.05307 | F45: 0.06026 | G45: 0.06745 | H45: 0.07464 | I45: 0.08183 | J45: 0.08902
B46: =IFERROR(ROUND(#REF!*3.01,2),"") ->  | C46: 0.03953 | D46: 0.04756 | E46: 0.05559 | F46: 0.06361 | G46: 0.07164 | H46: 0.07967 | I46: 0.0877 | J46: 0.09573
B47: =IFERROR(ROUND(#REF!*3.51,2),"") ->  | C47: 0.04016 | D47: 0.04882 | E47: 0.05747 | F47: 0.06613 | G47: 0.07479 | H47: 0.08345 | I47: 0.09211 | J47: 0.10077
B48: =IFERROR(ROUND(#REF!*4.01,2),"") ->  | C48: 0.04241 | D48: 0.05331 | E48: 0.06422 | F48: 0.07513 | G48: 0.08603 | H48: 0.09694 | I48: 0.10784 | J48: 0.11875
B51: 2023 | C51: 2
B52: 2024 | C52: 3
B53: 2025 | C53: 4
B54: 2026 | C54: 5
B55: 2027 | C55: 6
B56: 2028 | C56: 7
B57: 2029 | C57: 8
B58: 2030 | C58: 9
B61: Tabla de vacaciones
B62: Mímino | C62: Máximo | D62: Días | F62: Área geográfica | G62: Salario mímino
B63: 0 | C63: 1 | D63: 12 | F63: Zona Libre de la Frontera Norte | G63: 419.88
B64: =C63+0.01 -> 1.01 | C64: =C63+1 -> 2 | D64: =D63+2 -> 14 | F64: Zona del Salario Mínimo General | G64: 278.8
B65: =C64+0.01 -> 2.01 | C65: =C64+1 -> 3 | D65: =D64+2 -> 16
B66: 3.01 | C66: 4 | D66: 18
B67: 4.01 | C67: 5 | D67: 20 | F67: Valor de la UMA | G67: Importe
B68: 5.01 | C68: =C67+5 -> 10 | D68: 22 | F68: Enero | G68: 103.74
B69: 10.01 | C69: =C68+5 -> 15 | D69: 24 | F69: Febrero en adelante | G69: 108.57
B70: 15.01 | C70: 20 | D70: 26
B71: 20.01 | C71: 25 | D71: 28 | F71: Pediodicidad
B72: 25.01 | C72: 30 | D72: 30 | F72: Diario | G72: 1
B73: 30.01 | C73: 35 | D73: 32 | F73: Semanal | G73: 7
B74: 35.01 | C74: 40 | D74: 34 | F74: Catorcenal | G74: 10
B75: 40.01 | C75: 45 | D75: 36 | F75: Quincenal | G75: 14
B76: 45.01 | C76: 50 | D76: 38 | F76: Mensual | G76: 30
B77: 50.01 | C77: 55 | D77: 40
B78: 55.01 | C78: 60 | D78: 42
B79: 60.01 | C79: 65 | D79: 44
B80: 65.01 | C80: 70 | D80: 46
F83: www.acfmsc.com
B87: 1
B88: 2
B89: 3
B90: 4
B91: 5
B92: 6
B93: 7
B94: 8
B95: 9
B96: 10
B97: 11
B98: 12
B99: 13
B100: 14
B101: 15
B102: 16
B103: 17
B104: 18
B105: 19
B106: 20
B107: 21
B108: 22
B109: 23
B110: 24
B111: 25
B112: 26
B113: 27
B114: 28
B115: 29
B116: 30
B117: 31
B133: c_TipoContrato | C133: Descripción
B134: 1 | C134: Contrato de trabajo por tiempo indeterminado
B135: 2 | C135: Contrato de trabajo para obra determinada
B136: 3 | C136: Contrato de trabajo por tiempo determinado
B137: 4 | C137: Contrato de trabajo por temporada
B138: 5 | C138: Contrato de trabajo sujeto a prueba
B139: 6 | C139: Contrato de trabajo con capacitación inicial
B140: 7 | C140: Modalidad de contratación por pago de hora laborada
B141: 8 | C141: Modalidad de trabajo por comisión laboral
B142: 9 | C142: Modalidades de contratación donde no existe relación de trabajo
B143: 10 | C143: Jubilación, pensión, retiro.
B144: 99 | C144: Otro contrato
B147: c_TipoJornada | C147: Descripción
B148: 1 | C148: Diurna
B149: 2 | C149: Nocturna
B150: 3 | C150: Mixta
B151: 4 | C151: Por hora
B152: 5 | C152: Reducida
B153: 6 | C153: Continuada
B154: 7 | C154: Partida
B155: 8 | C155: Por turnos
B156: 99 | C156: Otra Jornada
B158: c_TipoRegimen | C158: Descripción
B159: 2 | C159: Sueldos (Incluye ingresos señalados en la fracción I del artículo 94 de LISR)
B160: 3 | C160: Jubilados
B161: 4 | C161: Pensionados
B162: 5 | C162: Asimilados Miembros Sociedades Cooperativas Produccion
B163: 6 | C163: Asimilados Integrantes Sociedades Asociaciones Civiles
B164: 7 | C164: Asimilados Miembros consejos
B165: 8 | C165: Asimilados comisionistas
B166: 9 | C166: Asimilados Honorarios
B167: 10 | C167: Asimilados acciones
B168: 11 | C168: Asimilados otros
B169: 12 | C169: Jubilados o Pensionados
B170: 13 | C170: Indemnización o Separación
B171: 99 | C171: Otro Regimen
B173: c_RiesgoPuesto | C173: Descripción
B174: 1 | C174: Clase I
B175: 2 | C175: Clase II
B176: 3 | C176: Clase III
B177: 4 | C177: Clase IV
B178: 5 | C178: Clase V
B179: 99 | C179: No aplica
B181: c_PeriodicidadPago | C181: Descripción
B182: 1 | C182: Diario
B183: 2 | C183: Semanal
B184: 3 | C184: Catorcenal
B185: 4 | C185: Quincenal
B186: 5 | C186: Mensual
B187: 6 | C187: Bimestral
B188: 7 | C188: Unidad obra
B189: 8 | C189: Comisión
B190: 9 | C190: Precio alzado
B191: 10 | C191: Decenal
B192: 99 | C192: Otra Periodicidad
B194: c_Estado | C194: c_Pais | D194: Nombre del estado
B195: AGU | C195: MEX | D195: Aguascalientes
B196: BCN | C196: MEX | D196: Baja California
B197: BCS | C197: MEX | D197: Baja California Sur
B198: CAM | C198: MEX | D198: Campeche
B199: CHP | C199: MEX | D199: Chiapas
B200: CHH | C200: MEX | D200: Chihuahua
B201: COA | C201: MEX | D201: Coahuila
B202: COL | C202: MEX | D202: Colima
B203: CMX | C203: MEX | D203: Ciudad de México
B204: DUR | C204: MEX | D204: Durango
B205: GUA | C205: MEX | D205: Guanajuato
B206: GRO | C206: MEX | D206: Guerrero
B207: HID | C207: MEX | D207: Hidalgo
B208: JAL | C208: MEX | D208: Jalisco
B209: MEX | C209: MEX | D209: Estado de México
B210: MIC | C210: MEX | D210: Michoacán
B211: MOR | C211: MEX | D211: Morelos
B212: NAY | C212: MEX | D212: Nayarit
B213: NLE | C213: MEX | D213: Nuevo León
B214: OAX | C214: MEX | D214: Oaxaca
B215: PUE | C215: MEX | D215: Puebla
B216: QUE | C216: MEX | D216: Querétaro
B217: ROO | C217: MEX | D217: Quintana Roo
B218: SLP | C218: MEX | D218: San Luis Potosí
B219: SIN | C219: MEX | D219: Sinaloa
B220: SON | C220: MEX | D220: Sonora
B221: TAB | C221: MEX | D221: Tabasco
B222: TAM | C222: MEX | D222: Tamaulipas
B223: TLA | C223: MEX | D223: Tlaxcala
B224: VER | C224: MEX | D224: Veracruz
B225: YUC | C225: MEX | D225: Yucatán
B226: ZAC | C226: MEX | D226: Zacatecas

Sheet TARIFA (hidden)
B5: VI. Tarifa del mes de enero de 2025, para efectuar los pagos provisionales mensuales a que se refiere el artículo 106 de la Ley del ISR, aplicable a los ingresos que perciban los contribuyentes a que se refiere el Título IV, Capítulo II, Sección I de la Ley del ISR.
B6: Límite inferior | C6: Límite superior | D6: Cuota fija | E6: Por ciento para aplicarse sobre el excedente del límite inferior | L6: Tabla mensual RESICO
B7: $ | C7: $ | D7: $ | E7: % | L7: 0 | M7: 25000 | N7: 0.01
B8: 0.01 | C8: 746.04 | D8: 0 | E8: 1.92 | L8: =M7+0.01 -> 25000.01 | M8: 50000 | N8: 0.011
B9: 746.05 | C9: 6332.05 | D9: 14.32 | E9: 6.4 | L9: =M8+0.01 -> 50000.01 | M9: 83333 | N9: 0.015
B10: 6332.06 | C10: 11128.01 | D10: 371.83 | E10: 10.88 | L10: 83333.01 | M10: 208333 | N10: 0.02
B11: 11128.02 | C11: 12935.82 | D11: 893.63 | E11: 16 | L11: 208333.01 | M11: 3500000 | N11: 0.025
B12: 12935.83 | C12: 15487.71 | D12: 1182.88 | E12: 17.92
B13: 15487.72 | C13: 31236.49 | D13: 1640.18 | E13: 21.36
B14: 31236.5 | C14: 49233 | D14: 5004.12 | E14: 23.52
B15: 49233.01 | C15: 93993.9 | D15: 9236.89 | E15: 30
B16: 93993.91 | C16: 125325.2 | D16: 22665.17 | E16: 32
B17: 125325.21 | C17: 375975.61 | D17: 32691.18 | E17: 34
B18: 375975.62 | C18: En adelante | D18: 117912.32 | E18: 35
B20: Tarifa del mes de febrero de 2025, para efectuar los pagos provisionales mensuales a que se refiere el artículo 106 de la Ley del ISR, aplicable a los ingresos que perciban los contribuyentes a que se refiere el Título IV, Capítulo II, Sección I de la Ley del ISR.
B21: Límite inferior | C21: Límite superior | D21: Cuota fija | E21: Por ciento para aplicarse sobre el excedente del límite inferior
B22: $ | C22: $ | D22: $ | E22: %
B23: 0.01 | C23: 1492.08 | D23: 0 | E23: 1.92
B24: 1492.09 | C24: 12664.1 | D24: 28.64 | E24: 6.4
B25: 12664.11 | C25: 22256.02 | D25: 743.66 | E25: 10.88
B26: 22256.03 | C26: 25871.64 | D26: 1787.26 | E26: 16
B27: 25871.65 | C27: 30975.42 | D27: 2365.76 | E27: 17.92
B28: 30975.43 | C28: 62472.98 | D28: 3280.36 | E28: 21.36
B29: 62472.99 | C29: 98466 | D29: 10008.24 | E29: 23.52
B30: 98466.01 | C30: 187987.8 | D30: 18473.78 | E30: 30
B31: 187987.81 | C31: 250650.4 | D31: 45330.34 | E31: 32
B32: 250650.41 | C32: 751951.22 | D32: 65382.36 | E32: 34
B33: 751951.23 | C33: En adelante | D33: 235824.64 | E33: 35
B35: Tarifa del mes de marzo de 2025, para efectuar los pagos provisionales mensuales a que se refiere el artículo 106 de la Ley del ISR, aplicable a los ingresos que perciban los contribuyentes a que se refiere el Título IV, Capítulo II, Sección I de la Ley del ISR.
B36: Límite inferior | C36: Límite superior | D36: Cuota fija | E36: Por ciento para aplicarse sobre el excedente del límite inferior
B37: $ | C37: $ | D37: $ | E37: %
B38: 0.01 | C38: 2238.12 | D38: 0 | E38: 1.92
B39: 2238.13 | C39: 18996.15 | D39: 42.96 | E39: 6.4
B40: 18996.16 | C40: 33384.03 | D40: 1115.49 | E40: 10.88
B41: 33384.04 | C41: 38807.46 | D41: 2680.89 | E41: 16
B42: 38807.47 | C42: 46463.13 | D42: 3548.64 | E42: 17.92
B43: 46463.14 | C43: 93709.47 | D43: 4920.54 | E43: 21.36
B44: 93709.48 | C44: 147699 | D44: 15012.36 | E44: 23.52
B45: 147699.01 | C45: 281981.7 | D45: 27710.67 | E45: 30
B46: 281981.71 | C46: 375975.6 | D46: 67995.51 | E46: 32
B47: 375975.61 | C47: 1127926.83 | D47: 98073.54 | E47: 34
B48: 1127926.84 | C48: En adelante | D48: 353736.96 | E48: 35
B50: Tarifa del mes de abril de 2025, para efectuar los pagos provisionales mensuales a que se refiere el artículo 106 de la Ley del ISR, aplicable a los ingresos que perciban los contribuyentes a que se refiere el Título IV, Capítulo II, Sección I de la Ley del ISR.
B51: Límite inferior | C51: Límite superior | D51: Cuota fija | E51: Por ciento para aplicarse sobre el excedente del límite inferior
B52: $ | C52: $ | D52: $ | E52: %
B53: 0.01 | C53: 2984.16 | D53: 0 | E53: 1.92
B54: 2984.17 | C54: 25328.2 | D54: 57.28 | E54: 6.4
B55: 25328.21 | C55: 44512.04 | D55: 1487.32 | E55: 10.88
B56: 44512.05 | C56: 51743.28 | D56: 3574.52 | E56: 16
B57: 51743.29 | C57: 61950.84 | D57: 4731.52 | E57: 17.92
B58: 61950.85 | C58: 124945.96 | D58: 6560.72 | E58: 21.36
B59: 124945.97 | C59: 196932 | D59: 20016.48 | E59: 23.52
B60: 196932.01 | C60: 375975.6 | D60: 36947.56 | E60: 30
B61: 375975.61 | C61: 501300.8 | D61: 90660.68 | E61: 32
B62: 501300.81 | C62: 1503902.44 | D62: 130764.72 | E62: 34
B63: 1503902.45 | C63: En adelante | D63: 471649.28 | E63: 35
B65: Tarifa del mes de mayo de 2025, para efectuar los pagos provisionales mensuales a que se refiere el artículo 106 de la Ley del ISR, aplicable a los ingresos que perciban los contribuyentes a que se refiere el Título IV, Capítulo II, Sección I de la Ley del ISR.
B66: Límite inferior | C66: Límite superior | D66: Cuota fija | E66: Por ciento para aplicarse sobre el excedente del límite inferior
B67: $ | C67: $ | D67: $ | E67: %
B68: 0.01 | C68: 3730.2 | D68: 0 | E68: 1.92
B69: 3730.21 | C69: 31660.25 | D69: 71.6 | E69: 6.4
B70: 31660.26 | C70: 55640.05 | D70: 1859.15 | E70: 10.88
B71: 55640.06 | C71: 64679.1 | D71: 4468.15 | E71: 16
B72: 64679.11 | C72: 77438.55 | D72: 5914.4 | E72: 17.92
B73: 77438.56 | C73: 156182.45 | D73: 8200.9 | E73: 21.36
B74: 156182.46 | C74: 246165 | D74: 25020.6 | E74: 23.52
B75: 246165.01 | C75: 469969.5 | D75: 46184.45 | E75: 30
B76: 469969.51 | C76: 626626 | D76: 113325.85 | E76: 32
B77: 626626.01 | C77: 1879878.05 | D77: 163455.9 | E77: 34
B78: 1879878.06 | C78: En adelante | D78: 589561.6 | E78: 35
B80: Tarifa del mes de junio de 2025, para efectuar los pagos provisionales mensuales a que se refiere el artículo 106 de la Ley del ISR, aplicable a los ingresos que perciban los contribuyentes a que se refiere el Título IV, Capítulo II, Sección I de la Ley del ISR.
B81: Límite inferior | C81: Límite superior | D81: Cuota fija | E81: Por ciento para aplicarse sobre el excedente del límite inferior
B82: $ | C82: $ | D82: $ | E82: %
B83: 0.01 | C83: 4476.24 | D83: 0 | E83: 1.92
B84: 4476.25 | C84: 37992.3 | D84: 85.92 | E84: 6.4
B85: 37992.31 | C85: 66768.06 | D85: 2230.98 | E85: 10.88
B86: 66768.07 | C86: 77614.92 | D86: 5361.78 | E86: 16
B87: 77614.93 | C87: 92926.26 | D87: 7097.28 | E87: 17.92
B88: 92926.27 | C88: 187418.94 | D88: 9841.08 | E88: 21.36
B89: 187418.95 | C89: 295398 | D89: 30024.72 | E89: 23.52
B90: 295398.01 | C90: 563963.4 | D90: 55421.34 | E90: 30
B91: 563963.41 | C91: 751951.2 | D91: 135991.02 | E91: 32
B92: 751951.21 | C92: 2255853.66 | D92: 196147.08 | E92: 34
B93: 2255853.67 | C93: En adelante | D93: 707473.92 | E93: 35
B95: Tarifa del mes de julio de 2025, para efectuar los pagos provisionales mensuales a que se refiere el artículo 106 de la Ley del ISR, aplicable a los ingresos que perciban los contribuyentes a que se refiere el Título IV, Capítulo II, Sección I de la Ley del ISR.
B96: Límite inferior | C96: Límite superior | D96: Cuota fija | E96: Por ciento para aplicarse sobre el excedente del límite inferior
B97: $ | C97: $ | D97: $ | E97: %
B98: 0.01 | C98: 5222.28 | D98: 0 | E98: 1.92
B99: 5222.29 | C99: 44324.35 | D99: 100.24 | E99: 6.4
B100: 44324.36 | C100: 77896.07 | D100: 2602.81 | E100: 10.88
B101: 77896.08 | C101: 90550.74 | D101: 6255.41 | E101: 16
B102: 90550.75 | C102: 108413.97 | D102: 8280.16 | E102: 17.92
B103: 108413.98 | C103: 218655.43 | D103: 11481.26 | E103: 21.36
B104: 218655.44 | C104: 344631 | D104: 35028.84 | E104: 23.52
B105: 344631.01 | C105: 657957.3 | D105: 64658.23 | E105: 30
B106: 657957.31 | C106: 877276.4 | D106: 158656.19 | E106: 32
B107: 877276.41 | C107: 2631829.27 | D107: 228838.26 | E107: 34
B108: 2631829.28 | C108: En adelante | D108: 825386.24 | E108: 35
B110: Tarifa del mes de agosto de 2025, para efectuar los pagos provisionales mensuales a que se refiere el artículo 106 de la Ley del ISR, aplicable a los ingresos que perciban los contribuyentes a que se refiere el Título IV, Capítulo II, Sección I de la Ley del ISR.
B111: Límite inferior | C111: Límite superior | D111: Cuota fija | E111: Por ciento para aplicarse sobre el excedente del límite inferior
B112: $ | C112: $ | D112: $ | E112: %
B113: 0.01 | C113: 5968.32 | D113: 0 | E113: 1.92
B114: 5968.33 | C114: 50656.4 | D114: 114.56 | E114: 6.4
B115: 50656.41 | C115: 89024.08 | D115: 2974.64 | E115: 10.88
B116: 89024.09 | C116: 103486.56 | D116: 7149.04 | E116: 16
B117: 103486.57 | C117: 123901.68 | D117: 9463.04 | E117: 17.92
B118: 123901.69 | C118: 249891.92 | D118: 13121.44 | E118: 21.36
B119: 249891.93 | C119: 393864 | D119: 40032.96 | E119: 23.52
B120: 393864.01 | C120: 751951.2 | D120: 73895.12 | E120: 30
B121: 751951.21 | C121: 1002601.6 | D121: 181321.36 | E121: 32
B122: 1002601.61 | C122: 3007804.88 | D122: 261529.44 | E122: 34
B123: 3007804.89 | C123: En adelante | D123: 943298.56 | E123: 35
B125: Tarifa del mes de septiembre de 2025, para efectuar los pagos provisionales mensuales a que se refiere el artículo 106 de la Ley del ISR, aplicable a los ingresos que perciban los contribuyentes a que se refiere el Título IV, Capítulo II, Sección I de la Ley del ISR.
B126: Límite inferior | C126: Límite superior | D126: Cuota fija | E126: Por ciento para aplicarse sobre el excedente del límite inferior
B127: $ | C127: $ | D127: $ | E127: %
B128: 0.01 | C128: 6714.36 | D128: 0 | E128: 1.92
B129: 6714.37 | C129: 56988.45 | D129: 128.88 | E129: 6.4
B130: 56988.46 | C130: 100152.09 | D130: 3346.47 | E130: 10.88
B131: 100152.1 | C131: 116422.38 | D131: 8042.67 | E131: 16
B132: 116422.39 | C132: 139389.39 | D132: 10645.92 | E132: 17.92
B133: 139389.4 | C133: 281128.41 | D133: 14761.62 | E133: 21.36
B134: 281128.42 | C134: 443097 | D134: 45037.08 | E134: 23.52
B135: 443097.01 | C135: 845945.1 | D135: 83132.01 | E135: 30
B136: 845945.11 | C136: 1127926.8 | D136: 203986.53 | E136: 32
B137: 1127926.81 | C137: 3383780.49 | D137: 294220.62 | E137: 34
B138: 3383780.5 | C138: En adelante | D138: 1061210.88 | E138: 35
B140: Tarifa del mes de octubre de 2025, para efectuar los pagos provisionales mensuales a que se refiere el artículo 106 de la Ley del ISR, aplicable a los ingresos que perciban los contribuyentes a que se refiere el Título IV, Capítulo II, Sección I de la Ley del ISR.
B141: Límite inferior | C141: Límite superior | D141: Cuota fija | E141: Por ciento para aplicarse sobre el excedente del límite inferior
B142: $ | C142: $ | D142: $ | E142: %
B143: 0.01 | C143: 7460.4 | D143: 0 | E143: 1.92
B144: 7460.41 | C144: 63320.5 | D144: 143.2 | E144: 6.4
B145: 63320.51 | C145: 111280.1 | D145: 3718.3 | E145: 10.88
B146: 111280.11 | C146: 129358.2 | D146: 8936.3 | E146: 16
B147: 129358.21 | C147: 154877.1 | D147: 11828.8 | E147: 17.92
B148: 154877.11 | C148: 312364.9 | D148: 16401.8 | E148: 21.36
B149: 312364.91 | C149: 492330 | D149: 50041.2 | E149: 23.52
B150: 492330.01 | C150: 939939 | D150: 92368.9 | E150: 30
B151: 939939.01 | C151: 1253252 | D151: 226651.7 | E151: 32
B152: 1253252.01 | C152: 3759756.1 | D152: 326911.8 | E152: 34
B153: 3759756.11 | C153: En adelante | D153: 1179123.2 | E153: 35
B155: Tarifa del mes de noviembre de 2025, para efectuar los pagos provisionales mensuales a que se refiere el artículo 106 de la Ley del ISR, aplicable a los ingresos que perciban los contribuyentes a que se refiere el Título IV, Capítulo II, Sección I de la Ley del ISR.
B156: Límite inferior | C156: Límite superior | D156: Cuota fija | E156: Por ciento para aplicarse sobre el excedente del límite inferior
B157: $ | C157: $ | D157: $ | E157: %
B158: 0.01 | C158: 8206.44 | D158: 0 | E158: 1.92
B159: 8206.45 | C159: 69652.55 | D159: 157.52 | E159: 6.4
B160: 69652.56 | C160: 122408.11 | D160: 4090.13 | E160: 10.88
B161: 122408.12 | C161: 142294.02 | D161: 9829.93 | E161: 16
B162: 142294.03 | C162: 170364.81 | D162: 13011.68 | E162: 17.92
B163: 170364.82 | C163: 343601.39 | D163: 18041.98 | E163: 21.36
B164: 343601.4 | C164: 541563 | D164: 55045.32 | E164: 23.52
B165: 541563.01 | C165: 1033932.9 | D165: 101605.79 | E165: 30
B166: 1033932.91 | C166: 1378577.2 | D166: 249316.87 | E166: 32
B167: 1378577.21 | C167: 4135731.71 | D167: 359602.98 | E167: 34
B168: 4135731.72 | C168: En adelante | D168: 1297035.52 | E168: 35
B170: Tarifa del mes de diciembre de 2025, para efectuar los pagos provisionales mensuales a que se refiere el artículo 106 de la Ley del ISR, aplicable a los ingresos que perciban los contribuyentes a que se refiere el Título IV, Capítulo II, Sección I de la Ley del ISR.
B171: Límite inferior | C171: Límite superior | D171: Cuota fija | E171: Por ciento para aplicarse sobre el excedente del límite inferior
B172: $ | C172: $ | D172: $ | E172: %
B173: 0.01 | C173: 8952.49 | D173: 0 | E173: 1.92
B174: 8952.5 | C174: 75984.55 | D174: 171.88 | E174: 6.4
B175: 75984.56 | C175: 133536.07 | D175: 4461.94 | E175: 10.88
B176: 133536.08 | C176: 155229.8 | D176: 10723.55 | E176: 16
B177: 155229.81 | C177: 185852.57 | D177: 14194.54 | E177: 17.92
B178: 185852.58 | C178: 374837.88 | D178: 19682.13 | E178: 21.36
B179: 374837.89 | C179: 590795.99 | D179: 60049.4 | E179: 23.52
B180: 590796 | C180: 1127926.84 | D180: 110842.74 | E180: 30
B181: 1127926.85 | C181: 1503902.46 | D181: 271981.99 | E181: 32
B182: 1503902.47 | C182: 4511707.37 | D182: 392294.17 | E182: 34
B183: 4511707.38 | C183: En adelante | D183: 1414947.85 | E183: 35
B185: Tarifa para el cálculo del impuesto correspondiente al ejercicio de 2025 a que se refieren los artículos 97 y 152 de la Ley del ISR, así como la regla 3.17.1.
B186: Límite inferior | C186: Límite superior | D186: Cuota fija | E186: Por ciento para aplicarse sobre el excedente del límite inferior
B187: $ | C187: $ | D187: $ | E187: %
B188: 0.01 | C188: 8952.49 | D188: 0 | E188: 1.92
B189: 8952.5 | C189: 75984.55 | D189: 171.88 | E189: 6.4
B190: 75984.56 | C190: 133536.07 | D190: 4461.94 | E190: 10.88
B191: 133536.08 | C191: 155229.8 | D191: 10723.55 | E191: 16
B192: 155229.81 | C192: 185852.57 | D192: 14194.54 | E192: 17.92
B193: 185852.58 | C193: 374837.88 | D193: 19682.13 | E193: 21.36
B194: 374837.89 | C194: 590795.99 | D194: 60049.4 | E194: 23.52
B195: 590796 | C195: 1127926.84 | D195: 110842.74 | E195: 30
B196: 1127926.85 | C196: 1503902.46 | D196: 271981.99 | E196: 32
B197: 1503902.47 | C197: 4511707.37 | D197: 392294.17 | E197: 34
B198: 4511707.38 | C198: En adelante | D198: 1414947.85 | E198: 35
B292: Enero | C292: 1
B293: Febrero | C293: 2
B294: Marzo | C294: 3
B295: Abril | C295: 4
B296: Mayo | C296: 5
B297: Junio | C297: 6
B298: Julio | C298: 7
B299: Agosto | C299: 8
B300: Septiembre | C300: 9
B301: Octubre | C301: 10
B302: Noviembre | C302: 11
B303: Diciembre | C303: 12
B311: Servicio de transporte terrestre de personas y entrega de bienes | C311: 0.021
B312: Servicio de hospedaje | C312: 0.04
B313: Enajenación de bienes y/o prestación de servicios | C313: 0.01
